Service Delivery Area(T),Service Delivery Team(T),CostC,ExpenditureGroup(T),Account(T),Supplier Name(T),Trans Date, Amount 
Care & Support,Assessment & Case Management,HOBL,Third Party Payments,Residential Expenditure,COVERAGE CARE SERVICES LTD,27/06/2012," 58,485.86 "
Care & Support,Assessment & Case Management,HOBL,Third Party Payments,Residential Expenditure,COVERAGE CARE SERVICES LTD,27/06/2012," 58,485.86 "
Care & Support,Assessment & Case Management,HOBL,Third Party Payments,Residential Expenditure,COVERAGE CARE SERVICES LTD,27/06/2012," 60,435.39 "
Care & Support,Assessment & Case Management,HOBP,Third Party Payments,Daycare Expenditure,COVERAGE CARE SERVICES LTD,27/06/2012," 34,291.07 "
Care & Support,Assessment & Case Management,HOBP,Third Party Payments,Daycare Expenditure,COVERAGE CARE SERVICES LTD,22/06/2012,"-23,766.64 "
Care & Support,Assessment & Case Management,HOBP,Third Party Payments,Daycare Expenditure,COVERAGE CARE SERVICES LTD,22/06/2012," 2,376.64 "
Care & Support,Assessment & Case Management,HOBP,Third Party Payments,Residential Expenditure,COVERAGE CARE SERVICES LTD,27/06/2012," 12,901.07 "
Care & Support,Assessment & Case Management,HOBP,Third Party Payments,Residential Expenditure,COVERAGE CARE SERVICES LTD,27/06/2012," 13,331.10 "
Care & Support,Assessment & Case Management,HOBR,Third Party Payments,Homecare Expenditure,ACCORD HOUSING ASSOCIATION LIMITED,25/06/2012," 106,673.29 "
Care & Support,Assessment & Case Management,HOBR,Third Party Payments,Homecare Expenditure,COVERAGE CARE SERVICES LTD,26/06/2012," 40,332.83 "
Care & Support,Assessment & Case Management,HOBR,Third Party Payments,Homecare Expenditure,ACCORD HOUSING ASSOCIATION LIMITED,22/06/2012," 28,252.61 "
Care & Support,Assessment & Case Management,HOBR,Third Party Payments,Homecare Expenditure,ACCORD HOUSING ASSOCIATION LIMITED,22/06/2012," 28,252.61 "
Care & Support,Assessment & Case Management,HOBR,Third Party Payments,Homecare Expenditure,ACCORD HOUSING ASSOCIATION LIMITED,22/06/2012," 28,252.61 "
Care & Support,"Joint Commissioning - Mental Health, Learning Disbaility & Substance Misuse",HHAB,Supplies & Services,Consultants Fees,TELFORD & WREKIN PCT,01/06/2012," 2,200.00 "
Care & Support,"Joint Commissioning - Mental Health, Learning Disbaility & Substance Misuse",HHAB,Supplies & Services,Comp Hardware (Purch / Hire),SPECIALIST COMPUTERS CENTRES PLC,08/06/2012," 3,803.85 "
Care & Support,"Joint Commissioning - Mental Health, Learning Disbaility & Substance Misuse",HJAA,Supplies & Services,Other Grants (Expenses),TELFORD & WREKIN C V S,11/06/2012," 128,193.50 "
Care & Support,"Joint Commissioning - Mental Health, Learning Disbaility & Substance Misuse",HJAA,Supplies & Services,Other Grants (Expenses),AGE CONCERN SHROPS TELFORD & WREKIN,07/06/2012," 5,532.00 "
Care & Support,"Joint Commissioning - Mental Health, Learning Disbaility & Substance Misuse",HJAA,Supplies & Services,Other Grants (Expenses),THE HUNTINGTON'S DISEASE ASSOCIATIONS,07/06/2012," 2,000.00 "
Care & Support,"Joint Commissioning - Mental Health, Learning Disbaility & Substance Misuse",HJAA,Supplies & Services,Other Grants (Expenses),AGE CONCERN SHROPS TELFORD & WREKIN,07/06/2012," 61,920.00 "
Care & Support,"Joint Commissioning - Mental Health, Learning Disbaility & Substance Misuse",HJAA,Supplies & Services,Other Grants (Expenses),CHAIRS & SPARES,07/06/2012," 5,202.00 "
Care & Support,"Joint Commissioning - Mental Health, Learning Disbaility & Substance Misuse",HJAA,Supplies & Services,Other Grants (Expenses),BRITISH RED CROSS SOCIETY,07/06/2012," 5,645.79 "
Care & Support,"Joint Commissioning - Mental Health, Learning Disbaility & Substance Misuse",HJAA,Supplies & Services,Other Grants (Expenses),SENIOR CITIZENS FORUM,07/06/2012," 50,000.00 "
Care & Support,Learning Disabilities,WHAF,Capital Expenditure,Payments to Contractor,SYNETRIX LTD,21/06/2012," 3,920.00 "
Care & Support,Learning Disabilities,HLBA,Premises-Related Expenditure,Gas,West Mercia Energy (WME),29/06/2012," 1,420.75 "
Care & Support,Learning Disabilities,HLEB,Premises-Related Expenditure,Trade Refuse,TELFORD & WREKIN SERVICES LTD,29/06/2012, 545.24 
Care & Support,Learning Disabilities,HLEC,Capital Financing Costs,Leased Equipment,LEX AUTOLEASE LTD,12/06/2012, 500.14 
Care & Support,Learning Disabilities,HLEC,Premises-Related Expenditure,Water Rates,SEVERN TRENT WATER LTD,01/06/2012," 1,256.99 "
Care & Support,Learning Disabilities,HLED,Premises-Related Expenditure,General Rents,THE WREKIN HOUSING TRUST,20/06/2012," 4,733.28 "
Care & Support,Learning Disabilities,HLED,Premises-Related Expenditure,General Rents,THE WREKIN HOUSING TRUST,20/06/2012," 1,328.52 "
Care & Support,Learning Disabilities,HLEE,Premises-Related Expenditure,General Rents,THE WREKIN HOUSING TRUST,20/06/2012," 10,393.86 "
Care & Support,Learning Disabilities,HLEE,Premises-Related Expenditure,General Rents,BOURNVILLE VILLAGE TRUST,08/06/2012," 1,725.00 "
Care & Support,Learning Disabilities,HLAJ,Supplies & Services,Other Grants (Expenses),TELFORD CHRISTIAN COUNCIL,26/06/2012," 2,152.00 "
Care & Support,Learning Disabilities,HLAK,Supplies & Services,Other Grants (Expenses),TELFORD & WREKIN PCT,20/06/2012," 135,000.00 "
Care & Support,Learning Disabilities,HLAL,Premises-Related Expenditure,General Rents,BOURNVILLE VILLAGE TRUST,26/06/2012," 11,818.01 "
Care & Support,Learning Disabilities,HLAL,Third Party Payments,Health Funded Services,DIMENSIONS (UK) LTD,26/06/2012," 26,445.85 "
Care & Support,Learning Disabilities,HLAL,Third Party Payments,Health Funded Services,DIMENSIONS (UK) LTD,26/06/2012," 36,071.35 "
Care & Support,Learning Disabilities,HLAL,Third Party Payments,Health Funded Services,DIMENSIONS (UK) LTD,26/06/2012," 30,023.58 "
Care & Support,Learning Disabilities,HLAL,Third Party Payments,Health Funded Services,DIMENSIONS (UK) LTD,26/06/2012," 43,285.62 "
Care & Support,Learning Disabilities,HLAL,Third Party Payments,Health Funded Services,ACCORD HOUSING ASSOCIATION LIMITED,26/06/2012," 36,741.90 "
Care & Support,Learning Disabilities,HLAL,Third Party Payments,Health Funded Services,ACCORD HOUSING ASSOCIATION LIMITED,14/06/2012," 35,556.66 "
Care & Support,Learning Disabilities,HLCL,Supplies & Services,Respite Care,BOURNVILLE VILLAGE TRUST,20/06/2012," 33,026.38 "
Care & Support,Learning Disabilities,HLCL,Third Party Payments,Residential Expenditure,BOURNVILLE VILLAGE TRUST,20/06/2012," 158,875.87 "
Care & Support,Learning Disabilities,HLDB,Supplies & Services,Items For Resale,TELFORD TIMBER SUPPLIES,01/06/2012, 652.50 
Care & Support,Learning Disabilities,HLDD,Premises-Related Expenditure,Water Rates,SEVERN TRENT WATER LTD,11/06/2012, 777.55 
Care & Support,Mental Health & Substance Misuse,HMAA,Supplies & Services,Computer Hardware (Maint),ILLY SYSTEMS LTD,12/06/2012," 3,750.00 "
Care & Support,Mental Health & Substance Misuse,HMBB,Premises-Related Expenditure,Gas,West Mercia Energy (WME),26/06/2012, 670.65 
Care & Support,Mental Health & Substance Misuse,HMBB,Premises-Related Expenditure,Gas,WEST MERCIA SUPPLIES Catalogue Supplies (None Utility),26/06/2012," 1,296.37 "
Care & Support,Mental Health & Substance Misuse,HMBG,Supplies & Services,Other Grants (Expenses),POHWER,15/06/2012," 3,259.11 "
Care & Support,Mental Health & Substance Misuse,HMBL,Premises-Related Expenditure,Gas,West Mercia Energy (WME),14/06/2012, 573.71 
Care & Support,Mental Health & Substance Misuse,HPAB,Supplies & Services,Comp Software (Purch / Hire),OLM SYSTEMS LTD,14/06/2012," 17,000.00 "
Care & Support,Mental Health & Substance Misuse,HPAB,Supplies & Services,Comp Software (Purch / Hire),OLM SYSTEMS LTD,14/06/2012," 4,000.00 "
Care & Support,Older People & Physical Disability,HJAC,Supplies & Services,Comp Software (Purch / Hire),THE COMMUNITY GATEWAY CIC,19/06/2012," 3,500.00 "
Care & Support,Older People & Physical Disability,HOAP,Supplies & Services,Equipment - Repair,HANDICARE ACCESSIBILITY LIMITED,25/06/2012, 507.50 
Care & Support,Older People & Physical Disability,HOAP,Supplies & Services,Equipment - Repair,HANDICARE ACCESSIBILITY LIMITED,25/06/2012, 507.50 
Care & Support,Older People & Physical Disability,HOAP,Supplies & Services,Equipment - Repair,HANDICARE ACCESSIBILITY LIMITED,27/06/2012," 5,220.00 "
Care & Support,Older People & Physical Disability,HOAP,Supplies & Services,Equipment - Repair,HANDICARE ACCESSIBILITY LIMITED,22/06/2012," 5,207.59 "
Care & Support,Older People & Physical Disability,HOAP,Supplies & Services,Aids & Appliances,Possum Ltd,21/06/2012," 1,075.00 "
Care & Support,Older People & Physical Disability,HOAP,Supplies & Services,Aids & Appliances,MIDEQUIP LTD,21/06/2012," 1,155.00 "
Care & Support,Older People & Physical Disability,HOAP,Supplies & Services,Aids & Appliances,PivoTell Ltd,18/06/2012, 895.00 
Care & Support,Older People & Physical Disability,HOAP,Supplies & Services,Aids & Appliances,N & C BUILDING PRODUCTS LTD,29/06/2012, 943.43 
Care & Support,Older People & Physical Disability,HOAP,Supplies & Services,Aids & Appliances,MYCO LTD,26/06/2012," 1,980.00 "
Care & Support,Older People & Physical Disability,HOAW,Supplies & Services,Mobile Phones,ORANGE PCS LTD,19/06/2012, 725.00 
Care & Support,Older People & Physical Disability,HOAW,Supplies & Services,Mobile Phones,ORANGE PCS LTD,26/06/2012, 725.00 
Care & Support,Older People & Physical Disability,HOAW,Supplies & Services,Mobile Phones,ORANGE PCS LTD,26/06/2012, 725.00 
Care & Support,Older People & Physical Disability,HOCL,Supplies & Services,Equipment - Purchase,DISABLE AIDS (CANNOCK) LTD,21/06/2012," 2,650.50 "
Care & Support,Older People & Physical Disability,HOCM,Employees,Agency Supply Costs,MEDICONNECT RECRUITMENT LTD,21/06/2012," 1,061.92 "
Care & Support,Older People & Physical Disability,HOCM,Employees,Agency Supply Costs,MEDICONNECT RECRUITMENT LTD,21/06/2012, 997.50 
Care & Support,Older People & Physical Disability,HOCM,Employees,Agency Supply Costs,MEDICONNECT RECRUITMENT LTD,21/06/2012, 997.50 
Care & Support,Older People & Physical Disability,HOCM,Employees,Agency Supply Costs,MEDICONNECT RECRUITMENT LTD,21/06/2012, 841.67 
Care & Support,Older People & Physical Disability,HOCM,Employees,Agency Supply Costs,MEDICONNECT RECRUITMENT LTD,21/06/2012, 986.00 
Care & Support,Older People & Physical Disability,HOCM,Employees,Agency Supply Costs,MEDICONNECT RECRUITMENT LTD,21/06/2012," 1,087.26 "
Care & Support,Older People & Physical Disability,HOCM,Employees,Agency Supply Costs,MEDICONNECT RECRUITMENT LTD,21/06/2012," 1,127.02 "
Care & Support,Older People & Physical Disability,HOCM,Employees,Agency Supply Costs,MEDICONNECT RECRUITMENT LTD,21/06/2012, 997.50 
Care & Support,Older People & Physical Disability,HOCM,Employees,Agency Supply Costs,MEDICONNECT RECRUITMENT LTD,21/06/2012, 997.50 
Care & Support,Older People & Physical Disability,HOCM,Employees,Agency Supply Costs,MEDICONNECT RECRUITMENT LTD,21/06/2012, 997.50 
Care & Support,Older People & Physical Disability,HOCM,Employees,Agency Supply Costs,MEDICONNECT RECRUITMENT LTD,25/06/2012, 988.34 
Care & Support,Older People & Physical Disability,HOCM,Employees,Agency Supply Costs,MEDICONNECT RECRUITMENT LTD,21/06/2012," 1,123.28 "
Care & Support,Older People & Physical Disability,HOCM,Employees,Agency Supply Costs,MEDICONNECT RECRUITMENT LTD,21/06/2012," 1,143.14 "
Care & Support,Older People & Physical Disability,HOCM,Employees,Agency Supply Costs,MEDICONNECT RECRUITMENT LTD,21/06/2012, 867.15 
Care & Support,Older People & Physical Disability,HOCM,Employees,Agency Supply Costs,MEDICONNECT RECRUITMENT LTD,25/06/2012," 1,112.46 "
Care & Support,Older People & Physical Disability,HOCM,Employees,Agency Supply Costs,MEDICONNECT RECRUITMENT LTD,25/06/2012, 997.50 
Care & Support,Older People & Physical Disability,JCAB,Supplies & Services,Supportive Lodgings,LEAVING CARE COMPANY,27/06/2012," 2,003.93 "
Care & Support,Older People & Physical Disability,JCAB,Supplies & Services,Supportive Lodgings,LEAVING CARE COMPANY,27/06/2012," 1,838.93 "
Care & Support,Older People & Physical Disability,JCAB,Supplies & Services,Supportive Lodgings,LEAVING CARE COMPANY,27/06/2012," 2,612.86 "
Care & Support,Older People & Physical Disability,JPBA,Supplies & Services,Supportive Lodgings,REDACTED PERSONAL INFORMATION,08/06/2012, 612.56 
Children & Family Services,Case Management & Children in Care,JMAA,Supplies & Services,Legal,TELF & WREKIN LEGAL SECTION URGENT A/C,12/06/2012," 35,535.00 "
Children & Family Services,Early Intervention,WCAC,Capital Expenditure,Computer Hardware,OLM SYSTEMS LTD,19/06/2012," 19,000.00 "
Children & Family Services,Early Intervention,WCAC,Capital Expenditure,Computer Software,OLM SYSTEMS LTD,14/06/2012," 4,206.71 "
Children & Family Services,Early Intervention,GEAG,Supplies & Services,Equipment - Purchase,SYNETRIX LTD,06/06/2012, 628.00 
Children & Family Services,Early Intervention,GEAG,Supplies & Services,Equipment - Purchase,SYNETRIX LTD,06/06/2012, 580.00 
Children & Family Services,Early Intervention,GEAK,Premises-Related Expenditure,Electricity,West Mercia Energy (WME),26/06/2012," 1,040.86 "
Children & Family Services,Early Intervention,GEAK,Premises-Related Expenditure,General Rents,PARK LANE CENTRE,26/06/2012," 8,543.50 "
Children & Family Services,Early Intervention,GEAK,Premises-Related Expenditure,General Rents,PARK LANE CENTRE,26/06/2012," 6,871.50 "
Children & Family Services,Early Intervention,GEAK,Premises-Related Expenditure,Grounds Maintenance - Other,PARK LANE CENTRE,26/06/2012, 560.00 
Children & Family Services,Early Intervention,GEAK,Supplies & Services,Marketing & Publicity,SHROPSHIRE COMMUNITY HEALTH NHS TRUST,14/06/2012," 1,124.33 "
Children & Family Services,Early Intervention,GEAL,Supplies & Services,Marketing & Publicity,SHROPSHIRE COMMUNITY HEALTH NHS TRUST,14/06/2012," 1,124.33 "
Children & Family Services,Early Intervention,GEAM,Supplies & Services,Marketing & Publicity,SHROPSHIRE COMMUNITY HEALTH NHS TRUST,14/06/2012," 1,124.34 "
Children & Family Services,Early Intervention,GYAK,Supplies & Services,Mobile Phones,PITNEY BOWES LTD,22/06/2012, 521.60 
Children & Family Services,Early Intervention,GYAK,Supplies & Services,Mobile Phones,PITNEY BOWES LTD,15/06/2012, 521.60 
Children & Family Services,Early Intervention,GYAL,Supplies & Services,Other Services,YOUTH SUPPORT SERVICES LTD,12/06/2012," 1,250.00 "
Children & Family Services,Placements & Fostering,JPAD,Third Party Payments,External Foster Care Payments,CLIFFORD HOUSE FOSTERING LTD,27/06/2012," 3,412.00 "
Children & Family Services,Placements & Fostering,JPAD,Third Party Payments,External Foster Care Payments,PROGRESS CHILDREN'S SERVICES LTD,18/06/2012," 3,963.66 "
Children & Family Services,Placements & Fostering,JPAD,Third Party Payments,External Foster Care Payments,NATIONAL FOSTERING AGENCY,14/06/2012," 3,449.99 "
Children & Family Services,Placements & Fostering,JPAD,Third Party Payments,External Foster Care Payments,HILLCREST CARE LTD,14/06/2012," 3,172.07 "
Children & Family Services,Placements & Fostering,JPAD,Third Party Payments,External Foster Care Payments,FOSTER CARE ASSOCIATES LTD,27/06/2012," 3,430.99 "
Children & Family Services,Placements & Fostering,JPAD,Third Party Payments,External Foster Care Payments,NATIONAL FOSTERING AGENCY,14/06/2012," 3,077.99 "
Children & Family Services,Placements & Fostering,JPAD,Third Party Payments,External Foster Care Payments,PHOENIX FOSTERING,20/06/2012," 5,310.00 "
Children & Family Services,Placements & Fostering,JPAD,Third Party Payments,External Foster Care Payments,NATIONAL FOSTERING AGENCY,14/06/2012," 3,077.99 "
Children & Family Services,Placements & Fostering,JPAD,Third Party Payments,External Foster Care Payments,HILLCREST CARE LTD,14/06/2012," 2,635.00 "
Children & Family Services,Placements & Fostering,JPAD,Third Party Payments,External Foster Care Payments,HILLCREST CARE LTD,14/06/2012," 2,635.00 "
Children & Family Services,Placements & Fostering,JPAD,Third Party Payments,External Foster Care Payments,NATIONAL FOSTERING AGENCY,27/06/2012," 3,096.90 "
Children & Family Services,Placements & Fostering,JPAD,Third Party Payments,External Foster Care Payments,HILLCREST CARE LTD,14/06/2012," 3,344.68 "
Children & Family Services,Placements & Fostering,JPAD,Third Party Payments,External Foster Care Payments,HILLCREST CARE LTD,14/06/2012," 3,244.33 "
Children & Family Services,Placements & Fostering,JPAD,Third Party Payments,External Foster Care Payments,PHOENIX FOSTERING,20/06/2012," 5,900.00 "
Children & Family Services,Placements & Fostering,JPAD,Third Party Payments,External Foster Care Payments,FOSTER CARE ASSOCIATES LTD,20/06/2012," 5,685.40 "
Children & Family Services,Placements & Fostering,JPAD,Third Party Payments,External Foster Care Payments,FOSTER CARE ASSOCIATES LTD,20/06/2012," 3,537.10 "
Children & Family Services,Placements & Fostering,JPAD,Third Party Payments,External Foster Care Payments,HILLCREST CARE LTD,14/06/2012," 3,114.39 "
Children & Family Services,Placements & Fostering,JPAD,Third Party Payments,External Foster Care Payments,FOSTER CARE ASSOCIATES LTD,20/06/2012," 4,845.73 "
Children & Family Services,Placements & Fostering,JPAD,Third Party Payments,External Foster Care Payments,SWIIS FOSTER CARE LTD,29/06/2012, 895.00 
Children & Family Services,Placements & Fostering,JPAD,Third Party Payments,External Foster Care Payments,FOSTER CARE ASSOCIATES LTD,20/06/2012," 4,461.60 "
Children & Family Services,Placements & Fostering,JPAD,Third Party Payments,External Foster Care Payments,FOSTER CARE ASSOCIATES LTD,27/06/2012," 3,366.60 "
Children & Family Services,Placements & Fostering,JPAD,Third Party Payments,External Foster Care Payments,SWIIS FOSTER CARE LTD,29/06/2012, 895.00 
Children & Family Services,Placements & Fostering,JPAD,Third Party Payments,External Foster Care Payments,THE ADOLESCENT & CHILDRENS TRUST,21/06/2012," 2,852.00 "
Children & Family Services,Placements & Fostering,JPAD,Third Party Payments,External Foster Care Payments,PHOENIX FOSTERING,21/06/2012," 5,310.00 "
Children & Family Services,Placements & Fostering,JPAD,Third Party Payments,External Foster Care Payments,PROGRESS CHILDREN'S SERVICES LTD,28/06/2012," 4,406.34 "
Children & Family Services,Placements & Fostering,JPAD,Third Party Payments,External Foster Care Payments,PROGRESS CHILDREN'S SERVICES LTD,28/06/2012," 4,264.20 "
Children & Family Services,Placements & Fostering,JPAD,Third Party Payments,External Foster Care Payments,CLIFFORD HOUSE FOSTERING LTD,27/06/2012," 3,412.00 "
Children & Family Services,Placements & Fostering,JPAD,Third Party Payments,External Foster Care Payments,PHOENIX FOSTERING,20/06/2012," 5,310.00 "
Children & Family Services,Placements & Fostering,JPAD,Third Party Payments,External Foster Care Payments,HILLCREST CARE LTD,28/06/2012," 3,344.68 "
Children & Family Services,Placements & Fostering,JPAD,Third Party Payments,External Foster Care Payments,FOSTER CARE ASSOCIATES LTD,20/06/2012," 3,366.60 "
Children & Family Services,Placements & Fostering,JPAD,Third Party Payments,External Foster Care Payments,HILLCREST CARE LTD,28/06/2012," 2,678.57 "
Children & Family Services,Placements & Fostering,JPAD,Third Party Payments,External Foster Care Payments,FOSTER CARE ASSOCIATES LTD,06/06/2012," 3,258.00 "
Children & Family Services,Placements & Fostering,JPAD,Third Party Payments,External Foster Care Payments,PROGRESS CHILDREN'S SERVICES LTD,28/06/2012," 3,835.80 "
Children & Family Services,Placements & Fostering,JPAD,Third Party Payments,External Foster Care Payments,FOSTER CARE ASSOCIATES LTD,21/06/2012," 3,430.99 "
Children & Family Services,Placements & Fostering,JPAD,Third Party Payments,External Foster Care Payments,FOSTER CARE ASSOCIATES LTD,21/06/2012," 4,664.40 "
Children & Family Services,Placements & Fostering,JPAD,Third Party Payments,External Foster Care Payments,INDEPENDENT CHILDCARE GROUP OF SCHOOLS L,21/06/2012," 3,424.20 "
Children & Family Services,Placements & Fostering,JPAD,Third Party Payments,External Foster Care Payments,HILLCREST CARE LTD,28/06/2012," 2,767.86 "
Children & Family Services,Placements & Fostering,JPAD,Third Party Payments,External Foster Care Payments,FOSTER CARE ASSOCIATES LTD,21/06/2012," 1,992.68 "
Children & Family Services,Placements & Fostering,JPAD,Third Party Payments,External Foster Care Payments,FOSTER CARE ASSOCIATES LTD,20/06/2012," 3,445.32 "
Children & Family Services,Placements & Fostering,JPAD,Third Party Payments,External Foster Care Payments,HILLCREST CARE LTD,28/06/2012," 3,339.00 "
Children & Family Services,Placements & Fostering,JPAD,Third Party Payments,External Foster Care Payments,HILLCREST CARE LTD,28/06/2012," 3,450.30 "
Children & Family Services,Placements & Fostering,JPAD,Third Party Payments,External Foster Care Payments,NATIONAL FOSTERING AGENCY,14/06/2012," 3,380.86 "
Children & Family Services,Placements & Fostering,JPAD,Third Party Payments,External Foster Care Payments,THE ADOLESCENT & CHILDRENS TRUST,27/06/2012," 2,760.00 "
Children & Family Services,Placements & Fostering,JPAD,Third Party Payments,External Foster Care Payments,PHOENIX FOSTERING,27/06/2012," 5,310.00 "
Children & Family Services,Placements & Fostering,JPAD,Third Party Payments,External Foster Care Payments,HILLCREST CARE LTD,28/06/2012," 3,210.71 "
Children & Family Services,Placements & Fostering,JPAD,Third Party Payments,External Foster Care Payments,PROGRESS CHILDREN'S SERVICES LTD,28/06/2012," 4,264.20 "
Children & Family Services,Placements & Fostering,JPAD,Third Party Payments,External Foster Care Payments,ACTION FOR CHILDREN LIMITED,27/06/2012," 5,600.91 "
Children & Family Services,Placements & Fostering,JPAD,Third Party Payments,External Foster Care Payments,HILLCREST CARE LTD,28/06/2012," 3,236.79 "
Children & Family Services,Placements & Fostering,JPAD,Third Party Payments,External Foster Care Payments,HILLCREST CARE LTD,27/06/2012," 3,236.79 "
Children & Family Services,Placements & Fostering,JPAD,Third Party Payments,External Foster Care Payments,FOSTER CARE ASSOCIATES LTD,22/06/2012," 5,502.00 "
Children & Family Services,Placements & Fostering,JPAD,Third Party Payments,External Foster Care Payments,FOSTER CARE ASSOCIATES LTD,22/06/2012," 3,584.40 "
Children & Family Services,Placements & Fostering,JPAD,Third Party Payments,External Foster Care Payments,HILLCREST CARE LTD,28/06/2012," 3,277.81 "
Children & Family Services,Placements & Fostering,JPAD,Third Party Payments,External Foster Care Payments,SWIIS FOSTER CARE LTD,28/06/2012, 895.00 
Children & Family Services,Placements & Fostering,JPAD,Third Party Payments,External Foster Care Payments,NATIONAL FOSTERING AGENCY,14/06/2012," 3,077.99 "
Children & Family Services,Placements & Fostering,JPAD,Third Party Payments,External Foster Care Payments,FOSTER CARE ASSOCIATES LTD,01/06/2012," 3,258.00 "
Children & Family Services,Placements & Fostering,JPAD,Third Party Payments,External Foster Care Payments,THE ADOLESCENT & CHILDRENS TRUST,20/06/2012," 2,915.55 "
Children & Family Services,Placements & Fostering,JPAD,Third Party Payments,External Foster Care Payments,FOSTER CARE ASSOCIATES LTD,14/06/2012," 3,143.40 "
Children & Family Services,Placements & Fostering,JPAD,Third Party Payments,External Foster Care Payments,By The Bridge,14/06/2012," 3,685.71 "
Children & Family Services,Placements & Fostering,JPAD,Third Party Payments,External Foster Care Payments,HILLCREST CARE LTD,28/06/2012," 3,172.07 "
Children & Family Services,Placements & Fostering,JPAD,Third Party Payments,External Foster Care Payments,FOSTER CARE ASSOCIATES LTD,27/06/2012," 5,685.40 "
Children & Family Services,Placements & Fostering,JPAD,Third Party Payments,External Foster Care Payments,FOSTERING SOLUTIONS LTD,18/06/2012," 3,267.81 "
Children & Family Services,Placements & Fostering,JPAD,Third Party Payments,External Foster Care Payments,FOSTER CARE ASSOCIATES LTD,14/06/2012," 3,143.40 "
Children & Family Services,Placements & Fostering,JPAD,Third Party Payments,External Foster Care Payments,HILLCREST CARE LTD,28/06/2012," 3,520.71 "
Children & Family Services,Placements & Fostering,JPAD,Third Party Payments,External Foster Care Payments,FOSTERING PRIORY,20/06/2012," 3,609.29 "
Children & Family Services,Placements & Fostering,JPAD,Third Party Payments,External Foster Care Payments,NATIONAL FOSTERING AGENCY,22/06/2012," 3,299.33 "
Children & Family Services,Placements & Fostering,JPAD,Third Party Payments,External Foster Care Payments,THE ADOLESCENT & CHILDRENS TRUST,27/06/2012," 2,821.50 "
Children & Family Services,Placements & Fostering,JPAD,Third Party Payments,External Foster Care Payments,FOSTER CARE ASSOCIATES LTD,14/06/2012," 3,366.60 "
Children & Family Services,Placements & Fostering,JPAD,Third Party Payments,External Foster Care Payments,HILLCREST CARE LTD,28/06/2012," 2,767.86 "
Children & Family Services,Placements & Fostering,JPAD,Third Party Payments,External Foster Care Payments,HILLCREST CARE LTD,28/06/2012," 3,277.81 "
Children & Family Services,Placements & Fostering,JPAD,Third Party Payments,External Foster Care Payments,NATIONAL FOSTERING AGENCY,14/06/2012," 3,449.99 "
Children & Family Services,Placements & Fostering,JPAD,Third Party Payments,External Foster Care Payments,HILLCREST CARE LTD,14/06/2012," 3,013.93 "
Children & Family Services,Placements & Fostering,JPAD,Third Party Payments,External Foster Care Payments,By The Bridge,27/06/2012," 4,295.71 "
Children & Family Services,Placements & Fostering,JPAD,Third Party Payments,External Foster Care Payments,FREEDOM FOSTERING,27/06/2012," 3,762.00 "
Children & Family Services,Placements & Fostering,JPAD,Third Party Payments,External Foster Care Payments,NATIONAL FOSTERING AGENCY,22/06/2012," 3,246.01 "
Children & Family Services,Placements & Fostering,JPAD,Third Party Payments,External Foster Care Payments,SWIIS FOSTER CARE LTD,28/06/2012, 895.00 
Children & Family Services,Placements & Fostering,JPAD,Third Party Payments,External Foster Care Payments,PHOENIX FOSTERING,28/06/2012," 5,900.00 "
Children & Family Services,Placements & Fostering,JPAD,Third Party Payments,External Foster Care Payments,FOSTER CARE ASSOCIATES LTD,14/06/2012," 3,143.40 "
Children & Family Services,Placements & Fostering,JPAD,Third Party Payments,External Foster Care Payments,FOSTER CARE ASSOCIATES LTD,14/06/2012," 3,537.10 "
Children & Family Services,Placements & Fostering,JPAD,Third Party Payments,External Foster Care Payments,NATIONAL FOSTERING AGENCY,14/06/2012," 3,077.99 "
Children & Family Services,Placements & Fostering,JPAD,Third Party Payments,External Foster Care Payments,FOSTER CARE ASSOCIATES LTD,14/06/2012," 1,992.68 "
Children & Family Services,Placements & Fostering,JPAD,Third Party Payments,External Foster Care Payments,NATIONAL FOSTERING AGENCY,14/06/2012," 3,175.64 "
Children & Family Services,Placements & Fostering,JPAD,Third Party Payments,External Foster Care Payments,By The Bridge,27/06/2012," 5,160.00 "
Children & Family Services,Placements & Fostering,JPAD,Third Party Payments,External Foster Care Payments,HILLCREST CARE LTD,14/06/2012," 2,978.57 "
Children & Family Services,Placements & Fostering,JPAD,Third Party Payments,External Foster Care Payments,FAMILIES@FAMILYCARE,14/06/2012," 2,325.90 "
Children & Family Services,Placements & Fostering,JPAD,Third Party Payments,External Foster Care Payments,FAMILIES@FAMILYCARE,14/06/2012," 4,092.60 "
Children & Family Services,Placements & Fostering,JPAD,Third Party Payments,External Foster Care Payments,HILLCREST CARE LTD,14/06/2012," 2,932.60 "
Children & Family Services,Placements & Fostering,JPAD,Third Party Payments,External Foster Care Payments,NATIONAL FOSTERING AGENCY,14/06/2012," 4,443.85 "
Children & Family Services,Placements & Fostering,JPAD,Third Party Payments,External Foster Care Payments,NATIONAL FOSTERING AGENCY,14/06/2012," 3,246.01 "
Children & Family Services,Placements & Fostering,JPAD,Third Party Payments,External Foster Care Payments,NATIONAL FOSTERING AGENCY,14/06/2012," 3,233.30 "
Children & Family Services,Placements & Fostering,JPAD,Third Party Payments,External Foster Care Payments,Childcare Bureau,13/06/2012," 3,997.50 "
Children & Family Services,Placements & Fostering,JPAD,Third Party Payments,External Foster Care Payments,FAMILIES@FAMILYCARE,13/06/2012," 3,578.40 "
Children & Family Services,Placements & Fostering,JPAD,Third Party Payments,External Foster Care Payments,HILLCREST CARE LTD,28/06/2012," 3,114.39 "
Children & Family Services,Placements & Fostering,JPAD,Third Party Payments,External Foster Care Payments,HILLCREST CARE LTD,27/06/2012, 803.57 
Children & Family Services,Placements & Fostering,JPAD,Third Party Payments,External Foster Care Payments,HILLCREST CARE LTD,27/06/2012," 2,550.00 "
Children & Family Services,Placements & Fostering,JPAD,Third Party Payments,External Foster Care Payments,HONEYBUNS NURSERIES,06/06/2012, 648.90 
Children & Family Services,Placements & Fostering,JPAD,Third Party Payments,External Foster Care Payments,FOSTER CARE ASSOCIATES LIMITED,23/06/2012," 3,334.18 "
Children & Family Services,Placements & Fostering,JPAD,Third Party Payments,External Foster Care Payments,FOSTERING PRIORY,28/06/2012," 3,492.86 "
Children & Family Services,Placements & Fostering,JPAD,Third Party Payments,External Foster Care Payments,HILLCREST CARE LTD,28/06/2012," 3,631.43 "
Children & Family Services,Placements & Fostering,JPAD,Third Party Payments,External Foster Care Payments,PROGRESS CHILDREN'S SERVICES LTD,14/06/2012," 3,564.00 "
Children & Family Services,Placements & Fostering,JPAD,Third Party Payments,External Foster Care Payments,FOSTER CARE ASSOCIATES LTD,14/06/2012," 3,537.10 "
Children & Family Services,Placements & Fostering,JPAD,Third Party Payments,External Foster Care Payments,FOSTER CARE ASSOCIATES LTD,27/06/2012," 3,445.32 "
Children & Family Services,Placements & Fostering,JPAD,Third Party Payments,External Foster Care Payments,HILLCREST CARE LTD,28/06/2012," 3,077.86 "
Children & Family Services,Placements & Fostering,JPAD,Third Party Payments,External Foster Care Payments,HILLCREST CARE LTD,14/06/2012," 3,346.36 "
Children & Family Services,Placements & Fostering,JPAD,Third Party Payments,External Foster Care Payments,HILLCREST CARE LTD,14/06/2012," 3,631.43 "
Children & Family Services,Placements & Fostering,JPAD,Third Party Payments,External Foster Care Payments,HILLCREST CARE LTD,14/06/2012," 2,767.86 "
Children & Family Services,Placements & Fostering,JPAD,Third Party Payments,External Foster Care Payments,FREEDOM FOSTERING,14/06/2012," 3,960.00 "
Children & Family Services,Placements & Fostering,JPAD,Third Party Payments,External Foster Care Payments,SWIIS FOSTER CARE LTD,28/06/2012, 895.00 
Children & Family Services,Placements & Fostering,JPAD,Third Party Payments,External Foster Care Payments,HILLCREST CARE LTD,28/06/2012," 3,107.14 "
Children & Family Services,Placements & Fostering,JPAD,Third Party Payments,External Foster Care Payments,FOSTER CARE ASSOCIATES LTD,14/06/2012," 3,265.60 "
Children & Family Services,Placements & Fostering,JPAD,Third Party Payments,External Foster Care Payments,HILLCREST CARE LTD,28/06/2012," 3,344.68 "
Children & Family Services,Placements & Fostering,JPAD,Third Party Payments,External Foster Care Payments,PHOENIX FOSTERING,27/06/2012," 5,310.00 "
Children & Family Services,Placements & Fostering,JPAD,Third Party Payments,External Foster Care Payments,PHOENIX FOSTERING,27/06/2012," 5,310.00 "
Children & Family Services,Placements & Fostering,JPAD,Third Party Payments,External Foster Care Payments,PROGRESS CHILDREN'S SERVICES LTD,27/06/2012," 3,835.80 "
Children & Family Services,Placements & Fostering,JPAD,Third Party Payments,External Foster Care Payments,FOSTER CARE ASSOCIATES LTD,13/06/2012," 3,703.88 "
Children & Family Services,Placements & Fostering,JPAD,Third Party Payments,External Foster Care Payments,HILLCREST CARE LTD,28/06/2012," 3,013.93 "
Children & Family Services,Placements & Fostering,JPAD,Third Party Payments,External Foster Care Payments,HILLCREST CARE LTD,14/06/2012," 3,077.86 "
Children & Family Services,Placements & Fostering,JPAD,Third Party Payments,External Foster Care Payments,NATIONAL FOSTERING AGENCY,14/06/2012," 3,077.99 "
Children & Family Services,Placements & Fostering,JPAD,Third Party Payments,External Foster Care Payments,NATIONAL FOSTERING AGENCY,14/06/2012," 3,077.99 "
Children & Family Services,Placements & Fostering,JPAD,Third Party Payments,External Foster Care Payments,HILLCREST CARE LTD,28/06/2012," 3,514.29 "
Children & Family Services,Placements & Fostering,JPAD,Third Party Payments,External Foster Care Payments,FOSTER CARE ASSOCIATES LTD,27/06/2012," 3,537.10 "
Children & Family Services,Placements & Fostering,JPAD,Third Party Payments,External Foster Care Payments,FOSTER CARE ASSOCIATES LTD,27/06/2012," 3,763.05 "
Children & Family Services,Placements & Fostering,JPAN,Premises-Related Expenditure,R&M -Buildings DLO Charge,PYRAMID SCHOOLS (HADLEY) LTD,27/06/2012," 3,151.96 "
Children & Family Services,Placements & Fostering,JPAN,Third Party Payments,Residential Expenditure,EXCEL CUSTODIAL & ESCORT SERVICES,14/06/2012," 1,368.75 "
Children & Family Services,Placements & Fostering,JPAN,Third Party Payments,Residential Expenditure,EDUCARE ADOLESCENT SERVICES LTD,21/06/2012," 24,214.20 "
Children & Family Services,Placements & Fostering,JPAN,Third Party Payments,Residential Expenditure,EDUCARE ADOLESCENT SERVICES LTD,21/06/2012," 25,021.34 "
Children & Family Services,Placements & Fostering,JPAN,Third Party Payments,Residential Expenditure,CASTLE HOMES CARE LIMITED,12/06/2012," 39,147.12 "
Children & Family Services,Placements & Fostering,JPAN,Third Party Payments,Residential Expenditure,CASTLE HOMES CARE LIMITED,12/06/2012," 39,147.12 "
Children & Family Services,Placements & Fostering,JPAN,Third Party Payments,Residential Expenditure,NEW HORIZONS CHILD CARE LTD,12/06/2012," 13,285.80 "
Children & Family Services,Placements & Fostering,JPAN,Third Party Payments,Residential Expenditure,EDUCARE ADOLESCENT SERVICES LTD,06/06/2012," 15,500.00 "
Children & Family Services,Placements & Fostering,JPAN,Third Party Payments,Residential Expenditure,EDUCARE ADOLESCENT SERVICES LTD,01/06/2012," 25,021.34 "
Children & Family Services,Placements & Fostering,JPAN,Third Party Payments,Residential Expenditure,ARAN HALL SCHOOL LTD,06/06/2012," 19,588.95 "
Children & Family Services,Placements & Fostering,JPAN,Third Party Payments,Residential Expenditure,EDUCARE ADOLESCENT SERVICES LTD,06/06/2012," 14,614.33 "
Children & Family Services,Placements & Fostering,JPAN,Third Party Payments,Residential Expenditure,REFLEXION CARE GROUP LTD,22/06/2012," 20,979.00 "
Children & Family Services,Placements & Fostering,JPAN,Third Party Payments,Residential Expenditure,YOUNG OPTIONS COLLEGE LTD,19/06/2012," 14,785.71 "
Children & Family Services,Placements & Fostering,JPAN,Third Party Payments,Residential Expenditure,YOUNG OPTIONS COLLEGE LTD,19/06/2012," 14,550.00 "
Children & Family Services,Placements & Fostering,JPAN,Third Party Payments,Residential Expenditure,CASTLE HOMES CARE LIMITED,06/06/2012," 39,147.12 "
Children & Family Services,Placements & Fostering,JPAN,Third Party Payments,Residential Expenditure,CASTLE HOMES CARE LIMITED,06/06/2012," 39,147.12 "
Children & Family Services,Placements & Fostering,JPAN,Third Party Payments,Residential Expenditure,CASTLE HOMES CARE LIMITED,22/06/2012," 12,952.50 "
Children & Family Services,Placements & Fostering,JPAN,Third Party Payments,Residential Expenditure,REFLEXION CARE GROUP LTD,27/06/2012," 13,860.00 "
Children & Family Services,Placements & Fostering,JPAN,Third Party Payments,Residential Expenditure,INDEPENDENT CHILDCARE GROUP OF SCHOOLS L,07/06/2012," 16,850.67 "
Children & Family Services,Placements & Fostering,JPAN,Third Party Payments,Residential Expenditure,INDEPENDENT CHILDCARE GROUP OF SCHOOLS L,07/06/2012," 16,307.10 "
Children & Family Services,Placements & Fostering,JPAN,Third Party Payments,Residential Expenditure,REFLEXION CARE GROUP LTD,27/06/2012," 12,600.00 "
Children & Family Services,Placements & Fostering,JPAN,Third Party Payments,Residential Expenditure,EDUCARE ADOLESCENT SERVICES LTD,06/06/2012," 14,614.33 "
Children & Family Services,Placements & Fostering,JPAN,Third Party Payments,Residential Expenditure,EDUCARE ADOLESCENT SERVICES LTD,06/06/2012," 15,500.00 "
Children & Family Services,Placements & Fostering,JPAN,Third Party Payments,Residential Expenditure,REFLEXION CARE GROUP LTD,27/06/2012," 14,322.00 "
Children & Family Services,Placements & Fostering,JPAN,Third Party Payments,Residential Expenditure,REFLEXION CARE GROUP LTD,27/06/2012, 840.00 
Children & Family Services,Placements & Fostering,JPAN,Third Party Payments,Residential Expenditure,INDEPENDENT CHILDCARE GROUP OF SCHOOLS L,26/06/2012," 16,307.10 "
Children & Family Services,Placements & Fostering,JPAN,Third Party Payments,Residential Expenditure,ARAN HALL SCHOOL LTD,26/06/2012," 19,588.95 "
Children & Family Services,Safeguarding Advisory,JAAC,Employees,Training Expenses,THE VICTORIA CLIMBIE FOUNDATION,20/06/2012, 500.00 
Children & Family Services,Safeguarding Advisory,JAAC,Employees,Training Expenses,EYEWITNESS,20/06/2012, 650.00 
Children & Family Services,Safeguarding Advisory,JAAG,Supplies & Services,Supportive Lodgings,THEO LANGSTON,13/06/2012," 1,986.17 "
Children & Family Services,Safeguarding Advisory,JHAB,Supplies & Services,Subscriptions,TRI-X-CHILDCARE LTD,20/06/2012," 6,200.00 "
Co-Operative Council,Communications & Marketing,MMAB,Supplies & Services,Equipment - Purchase,G LEDDINGTON (ELECTRICAL) LTD,18/06/2012," 1,280.50 "
Co-Operative Council,Communications & Marketing,MMAD,Employees,Recruitment Advertising,TSL EDUCATION LTD,22/06/2012, 756.00 
Co-Operative Council,Communications & Marketing,MMAD,Employees,Recruitment Advertising,TSL EDUCATION LTD,22/06/2012, 840.00 
Co-Operative Council,Communications & Marketing,MMAD,Employees,Recruitment Advertising,TSL EDUCATION LIMITED,25/06/2012, 800.00 
Co-Operative Council,Communications & Marketing,MMAD,Employees,Recruitment Advertising,TSL EDUCATION LIMITED,25/06/2012, 720.00 
Co-Operative Council,Communications & Marketing,MMAD,Employees,Recruitment Advertising,CBS OUTDOOR LIMITED,11/06/2012," 1,980.00 "
Co-Operative Council,Communications & Marketing,MMAD,Employees,Recruitment Advertising,THE MIDLAND NEWS ASSOCIATION LTD,22/06/2012," 1,116.18 "
Co-Operative Council,Communications & Marketing,MMAD,Employees,Recruitment Advertising,THE MIDLAND NEWS ASSOCIATION LTD,01/06/2012, 834.61 
Co-Operative Council,Communications & Marketing,MMAD,Supplies & Services,Advertising,REED BUSINESS INFORMATION LTD,06/06/2012," 1,500.00 "
Co-Operative Council,Communications & Marketing,MMAD,Supplies & Services,Advertising,REED BUSINESS INFORMATION LTD,06/06/2012," 1,347.50 "
Co-Operative Council,Communications & Marketing,MMAD,Supplies & Services,Advertising,ORION MEDIA,06/06/2012," 2,500.00 "
Co-Operative Council,Communications & Marketing,MMAD,Supplies & Services,Advertising,THE MIDLAND NEWS ASSOCIATION LTD,22/06/2012, 577.49 
Co-Operative Council,Communications & Marketing,MMAD,Supplies & Services,Advertising,THE MIDLAND NEWS ASSOCIATION LTD,14/06/2012, 540.00 
Co-Operative Council,Communications & Marketing,MMAD,Supplies & Services,Advertising,THE MIDLAND NEWS ASSOCIATION LTD,01/06/2012, 510.90 
Co-Operative Council,Communications & Marketing,MMAD,Supplies & Services,Advertising,ORION MEDIA,14/06/2012," 2,500.00 "
Co-Operative Council,Communications & Marketing,MMAD,Supplies & Services,Advertising,THE MIDLAND NEWS ASSOCIATION LTD,14/06/2012, 660.24 
Co-Operative Council,Community Engagement & Voluntary Sector,MCAE,Supplies & Services,Grants To Voluntary Organis,TELFORD & WREKIN CITIZENS ADVICE BUREAU,19/06/2012," 254,000.00 "
Co-Operative Council,Community Engagement & Voluntary Sector,MCAE,Supplies & Services,Community Fund Project,THE SIGN SHOP,07/06/2012, 800.00 
Co-Operative Council,Community Engagement & Voluntary Sector,MCAE,Supplies & Services,Grants To Voluntary Organis,Rights and Fairness Telford,25/06/2012," 17,000.00 "
Co-Operative Council,Community Engagement & Voluntary Sector,MCAE,Supplies & Services,Grants To Voluntary Organis,TELFORD & WREKIN C V S,25/06/2012," 20,000.00 "
Customer & People Services,Facilities (Catering & Cleaning),CAMA,Supplies & Services,Equipment - Hire,HORIZON SOFT DRINKS LTD,27/06/2012," 5,676.09 "
Customer & People Services,Facilities (Catering & Cleaning),CASM,Supplies & Services,EEC Whole Milk,JOHAL DAIRIES,20/06/2012," 2,875.74 "
Customer & People Services,Facilities (Catering & Cleaning),CASM,Supplies & Services,EEC Whole Milk,JOHAL DAIRIES,20/06/2012," 2,876.00 "
Customer & People Services,Facilities (Catering & Cleaning),CASM,Supplies & Services,EEC Whole Milk,JOHAL DAIRIES,20/06/2012," 2,260.60 "
Customer & People Services,Facilities (Catering & Cleaning),CASM,Supplies & Services,EEC Whole Milk,JOHAL DAIRIES,20/06/2012," 2,923.39 "
Customer & People Services,Facilities (Catering & Cleaning),CASM,Supplies & Services,EEC Whole Milk,JOHAL DAIRIES,20/06/2012," 2,924.71 "
Customer & People Services,Facilities (Catering & Cleaning),CASM,Supplies & Services,EEC Whole Milk,JOHAL DAIRIES,20/06/2012," 2,898.00 "
Customer & People Services,Facilities (Catering & Cleaning),CASM,Supplies & Services,EEC Whole Milk,JOHAL DAIRIES,20/06/2012, 825.27 
Customer & People Services,Facilities (Catering & Cleaning),CASM,Supplies & Services,EEC Whole Milk,JOHAL DAIRIES,20/06/2012, 685.63 
Customer & People Services,Facilities (Catering & Cleaning),CASM,Supplies & Services,EEC Whole Milk,JOHAL DAIRIES,20/06/2012, 826.99 
Customer & People Services,Facilities (Catering & Cleaning),CASM,Supplies & Services,EEC Whole Milk,JOHAL DAIRIES,20/06/2012, 802.45 
Customer & People Services,Facilities (Catering & Cleaning),CASM,Supplies & Services,EEC Whole Milk,JOHAL DAIRIES,20/06/2012, 826.99 
Customer & People Services,Facilities (Catering & Cleaning),CASM,Supplies & Services,EEC Whole Milk,JOHAL DAIRIES,20/06/2012, 820.67 
Customer & People Services,Facilities (Catering & Cleaning),CASM,Supplies & Services,EEC Whole Milk,JOHAL DAIRIES,20/06/2012, 819.91 
Customer & People Services,Facilities (Catering & Cleaning),CASP,Supplies & Services,Provisions,DO NOT USE FOR ORDERING- DIRECT BILLING ONLY,29/06/2012, 516.71 
Customer & People Services,Facilities (Catering & Cleaning),CASS,Supplies & Services,Provisions,SMART FOOD,12/06/2012, 672.60 
Customer & People Services,Human Resources,NHAC,Employees,Agency Supply Costs,SOLACE ENTERPRISES LIMITED,18/06/2012," 3,454.42 "
Customer & People Services,Human Resources,NHAC,Employees,Course Fees,GBDIRECT LIMITED,18/06/2012, 995.00 
Customer & People Services,ICT - Infrastructure & Operations,WCAG,Capital Expenditure,Payments to Contractor,SPECIALIST COMPUTERS CENTRES PLC,29/06/2012," 1,432.00 "
Customer & People Services,ICT - Infrastructure & Operations,WCAG,Capital Expenditure,Payments to Contractor,SPECIALIST COMPUTERS CENTRES PLC,29/06/2012," 2,656.00 "
Customer & People Services,ICT - Infrastructure & Operations,WCAG,Capital Expenditure,Payments to Contractor,SPECIALIST COMPUTERS CENTRES PLC,29/06/2012, 630.00 
Customer & People Services,ICT - Infrastructure & Operations,WCAG,Capital Expenditure,Payments to Contractor,SPECIALIST COMPUTERS CENTRES PLC,29/06/2012, 770.00 
Customer & People Services,ICT - Infrastructure & Operations,CBAF,Supplies & Services,Comp Hardware (Purch / Hire),ORANGE PERSONAL COMM SERVICES LTD,26/06/2012, 744.49 
Customer & People Services,ICT - Infrastructure & Operations,CBAF,Supplies & Services,Comp Hardware (Purch / Hire),SPECIALIST COMPUTERS CENTRES PLC,26/06/2012, 710.55 
Customer & People Services,ICT - Infrastructure & Operations,CBAF,Supplies & Services,Computer Software (Maint),NORTHGATE INFORMATION SOLUTIONS UK LTD,06/06/2012, 536.00 
Customer & People Services,ICT - Infrastructure & Operations,CBAG,Supplies & Services,Telephones,VIRGIN MEDIA BUSINESS,26/06/2012," 6,687.72 "
Customer & People Services,ICT - Infrastructure & Operations,CBAG,Supplies & Services,Mobile Phones,ORANGE PERSONAL COMM SERVICES LTD,08/06/2012," 1,044.75 "
Customer & People Services,ICT - Infrastructure & Operations,CBAG,Supplies & Services,Mobile Phones,ORANGE PERSONAL COMM SERVICES LTD,08/06/2012," 4,728.55 "
Customer & People Services,ICT - Infrastructure & Operations,CBAG,Supplies & Services,Mobile Phones,ORANGE PERSONAL COMM SERVICES LTD,08/06/2012," 1,567.20 "
Customer & People Services,ICT - Infrastructure & Operations,CBAG,Supplies & Services,Mobile Phones,ORANGE PERSONAL COMM SERVICES LTD,08/06/2012," 7,317.69 "
Customer & People Services,ICT - Infrastructure & Operations,CBAG,Supplies & Services,Mobile Phones,ORANGE PERSONAL COMM SERVICES LTD,08/06/2012," 14,612.35 "
Customer & People Services,ICT - Infrastructure & Operations,CBAG,Income,Fees & Charges General,ASSET ADVANTAGE LIMITED,08/06/2012," 1,663.33 "
Customer & People Services,ICT - Infrastructure & Operations,CBAG,Income,Fees & Charges General,CIT VENDOR FINANCE (UK) LTD,08/06/2012, 539.65 
Customer & People Services,ICT - Infrastructure & Operations,CBAG,Income,Fees & Charges General,ASSET ADVANTAGE LIMITED,08/06/2012, 632.54 
Customer & People Services,ICT - Infrastructure & Operations,CBAG,Income,Fees & Charges General,ASSET ADVANTAGE LIMITED,08/06/2012, 632.54 
Customer & People Services,ICT - Infrastructure & Operations,CBAJ,Premises-Related Expenditure,R&M -Building Other,PERT AIR CONDITIONING LIMITED,26/06/2012," 1,579.00 "
Customer & People Services,ICT - Infrastructure & Operations,CBAJ,Supplies & Services,Equipment - Purchase,WREKIN SERVICES LTD,14/06/2012," 1,326.64 "
Customer & People Services,ICT - Infrastructure & Operations,CBAJ,Supplies & Services,Comp Hardware (Purch / Hire),SPECIALIST COMPUTERS CENTRES PLC,18/06/2012," 1,466.80 "
Customer & People Services,ICT - Infrastructure & Operations,CBAJ,Supplies & Services,Comp Hardware (Purch / Hire),SPECIALIST COMPUTERS CENTRES PLC,18/06/2012, 733.40 
Customer & People Services,ICT - Infrastructure & Operations,CBAJ,Supplies & Services,Computer Hardware (Maint),NTS (Network Technology Solutions(UK)Ltd),13/06/2012," 7,095.00 "
Customer & People Services,ICT - Infrastructure & Operations,CBAJ,Supplies & Services,Computer Software (Maint),WELLDATA LTD,08/06/2012," 5,278.75 "
Customer & People Services,ICT - Infrastructure & Operations,CBAJ,Supplies & Services,External Computer Use,JORAPH MANAGED SERVICES LTD,08/06/2012," 3,000.00 "
Customer & People Services,ICT - Infrastructure & Operations,CBAJ,Supplies & Services,Telephones,BRITISH TELECOMMUNICATIONS PLC,08/06/2012," 3,331.81 "
Customer & People Services,ICT - Infrastructure & Operations,COAB,Supplies & Services,Postages,FRANCOTYP-POSTALIA LIMITED,14/06/2012," 5,000.00 "
Customer & People Services,ICT - Infrastructure & Operations,COAB,Supplies & Services,Postages,ROYAL MAIL GROUP LTD,14/06/2012," 1,300.00 "
Customer & People Services,Library Services,LBNE,Premises-Related Expenditure,Electricity,West Mercia Energy (WME),08/06/2012, 524.03 
Customer & People Services,Library Services,LBTE,Premises-Related Expenditure,Planned Repairs,West Mercia Energy (WME),08/06/2012, 688.53 
Customer & People Services,Library Services,LBTE,Premises-Related Expenditure,R&M - Pavillions,West Mercia Energy (WME),08/06/2012, 741.54 
Customer & People Services,Library Services,LBTE,Premises-Related Expenditure,Electricity,West Mercia Energy (WME),08/06/2012, 762.41 
Customer & People Services,Library Services,LBTE,Premises-Related Expenditure,Electricity,West Mercia Energy (WME),08/06/2012, 699.10 
Customer & People Services,Library Services,LLAA,Supplies & Services,Libraries Book Fund,AUDIOGO LIMITED,06/06/2012, 643.45 
Customer & People Services,Library Services,LLAA,Supplies & Services,Libraries Book Fund,BERTRAMS LIBRARY SERVICES,21/06/2012, 783.00 
Customer & People Services,Organisational Improvement,NOAG,Supplies & Services,Equipment - Purchase,ELEMENTARY TECHNOLOGY LTD,12/06/2012, 711.00 
Customer & People Services,Organisational Improvement,NOAH,Supplies & Services,Consultants Fees,WRAGGE & CO,18/06/2012," 1,486.40 "
Customer & People Services,Organisational Improvement,NOAM,Employees,Training Exp's (Facilitators),DRUGS EDUCATION TRAINING,25/06/2012, 780.00 
Customer & People Services,Organisational Improvement,NOAM,Employees,Training Exp's (Facilitators),PIP MASON CONSULTANCY,21/06/2012," 1,500.00 "
Customer & People Services,Organisational Improvement,NOAM,Employees,Training Exp's (Facilitators),L&D PHILLIPS,06/06/2012, 500.00 
Customer & People Services,Organisational Improvement,NOAT,Employees,Course Fees,Independent Clinical Initiative Services Ltd,19/06/2012," 1,094.27 "
Customer & People Services,Organisational Improvement,NOAT,Employees,Course Fees,Independent Clinical Initiative Services Ltd,19/06/2012, 715.00 
Customer & People Services,Organisational Improvement,NOAT,Employees,Training Exp's (Facilitators),BLITHFIELD SAFETY TRAINING,25/06/2012," 1,022.00 "
Customer & People Services,Organisational Improvement,NOAT,Employees,Training Exp's (Facilitators),Independent Clinical Initiative Services Ltd,12/06/2012," 1,130.46 "
Customer & People Services,Organisational Improvement,NOAT,Employees,Training Exp's (Facilitators),BAAF Adoption & Fostering,13/06/2012, 750.00 
Customer & People Services,Organisational Improvement,NOAT,Employees,Training Exp's (Facilitators),BLITHFIELD SAFETY TRAINING,29/06/2012, 950.00 
Customer & People Services,Organisational Improvement,NOAT,Employees,Training Exp's (Facilitators),SHROPSHIRE PARTNERS IN CARE LTD,19/06/2012," 1,460.00 "
Customer & People Services,Organisational Improvement,NOAT,Employees,Training Exp's (Facilitators),S STAFFORDSHIRE & SHROPSHIRE HEALTHCARE,25/06/2012, 576.00 
Customer & People Services,Organisational Improvement,NOAT,Employees,Training Exp's (Facilitators),Independent Clinical Initiative Services Ltd,12/06/2012," 1,430.00 "
Customer & People Services,Organisational Improvement,NOAT,Employees,Other Training,STAFFORDSHIRE UNIVERSITY,18/06/2012," 1,185.00 "
Customer & People Services,Revenues,LRAA,Supplies & Services,Comp Hardware (Purch / Hire),SYNETRIX LTD,13/06/2012," 1,532.00 "
Customer & People Services,Revenues,LRTA,Supplies & Services,Computer Software (Maint),CIVICA UK LIMITED,06/06/2012, 725.90 
Customer & People Services,Revenues,LRTA,Supplies & Services,Computer Software (Maint),CIVICA UK LIMITED,25/06/2012, 725.90 
Customer & People Services,Revenues,LRTA,Supplies & Services,Postages,ROYAL MAIL GROUP LTD,15/06/2012," 1,459.69 "
Customer & People Services,Revenues,LRTA,Supplies & Services,Postages,ROYAL MAIL GROUP LTD,13/06/2012," 2,496.23 "
Customer & People Services,Revenues,LRTA,Supplies & Services,Postages,ROYAL MAIL GROUP LTD,13/06/2012," 2,139.93 "
Customer & People Services,Revenues,LRTA,Third Party Payments,Other Government - Services,NORTHGATE INFORMATION SOLUTIONS UK LTD,25/06/2012," 1,300.00 "
Customer & People Services,Revenues,LRTB,Supplies & Services,Printing - Other,ON DEMAND TECHNOLOGY LTD,15/06/2012," 6,065.97 "
Customer & People Services,Revenues,LRTC,Supplies & Services,Printing - Other,ON DEMAND TECHNOLOGY LTD,15/06/2012," 3,180.39 "
Customer & People Services,Revenues,LRTC,Supplies & Services,Printing - Other,ON DEMAND TECHNOLOGY LTD,15/06/2012, 962.50 
Customer & People Services,Superintendent Registrar,LSAB,Supplies & Services,Equipment - Purchase,Broxap Ltd,06/06/2012," 2,551.00 "
"Development, Business & Housing",Building Schools for the Future (BSF),WGAD,Capital Expenditure,External Professional Fees,MOTT MACDONALD LIMITED,12/06/2012," 3,017.67 "
"Development, Business & Housing",Building Schools for the Future (BSF),WGAD,Capital Expenditure,Payments to Contractor,KIER CONSTRUCTION LTD,26/06/2012," 981,854.00 "
"Development, Business & Housing",Building Schools for the Future (BSF),WGAE,Capital Expenditure,Legal Fees,NABARRO,22/06/2012, 715.70 
"Development, Business & Housing",Building Schools for the Future (BSF),WGAG,Capital Expenditure,External Professional Fees,MOTT MACDONALD LIMITED,12/06/2012, 826.48 
"Development, Business & Housing",Building Schools for the Future (BSF),WGAG,Capital Expenditure,Payments to Contractor,KIER CONSTRUCTION LTD,18/06/2012," 759,306.61 "
"Development, Business & Housing",Building Schools for the Future (BSF),WGAJ,Capital Expenditure,Legal Fees,WARD HADAWAY SOLICITORS,12/06/2012," 7,156.40 "
"Development, Business & Housing",Building Schools for the Future (BSF),WGAJ,Capital Expenditure,Legal Fees,WARD HADAWAY SOLICITORS,12/06/2012," 7,014.80 "
"Development, Business & Housing",Building Schools for the Future (BSF),WGAJ,Capital Expenditure,Legal Fees,NABARRO,22/06/2012," 4,463.40 "
"Development, Business & Housing",Building Schools for the Future (BSF),WGAJ,Capital Expenditure,Legal Fees,NABARRO,22/06/2012," 4,918.46 "
"Development, Business & Housing",Building Schools for the Future (BSF),WGAJ,Capital Expenditure,External Professional Fees,MOTT MACDONALD LIMITED,12/06/2012," 5,969.85 "
"Development, Business & Housing",Building Schools for the Future (BSF),WGAJ,Capital Expenditure,Site Purchase,NABARRO,29/06/2012," 245,000.00 "
"Development, Business & Housing",Building Schools for the Future (BSF),WGAJ,Capital Expenditure,Site Purchase,NABARRO,29/06/2012," 89,927.22 "
"Development, Business & Housing",Building Schools for the Future (BSF),WGAL,Capital Expenditure,Legal Fees,NABARRO,01/06/2012," 1,950.00 "
"Development, Business & Housing",Building Schools for the Future (BSF),WGAP,Capital Expenditure,External Professional Fees,MOTT MACDONALD LIMITED,12/06/2012, 730.40 
"Development, Business & Housing",Building Schools for the Future (BSF),WGAP,Capital Expenditure,Payments to Contractor,KIER CONSTRUCTION LTD,18/06/2012," 185,626.36 "
"Development, Business & Housing",Building Schools for the Future (BSF),WGAT,Capital Expenditure,Payments to Contractor,KIER CONSTRUCTION LTD,18/06/2012," 65,113.56 "
"Development, Business & Housing",Capital and Facilities Management,CFAV,Capital Financing Costs,Unitary Charge,PYRAMID SCHOOLS (HADLEY) LTD,18/06/2012," 790,964.85 "
"Development, Business & Housing",Capital and Facilities Management,CFAV,Capital Financing Costs,Construction EWoC � Facilities Management Charge,PYRAMID SCHOOLS (HADLEY) LTD,13/06/2012, 839.49 
"Development, Business & Housing",Capital and Facilities Management,CFAV,Capital Financing Costs,Construction EWoC � Facilities Management Charge,PYRAMID SCHOOLS (HADLEY) LTD,18/06/2012," 1,277.22 "
"Development, Business & Housing",Estates & Investments,WGNE,Capital Expenditure,External Professional Fees,BEATTIE COMMUNICATIONS,06/06/2012," 1,025.00 "
"Development, Business & Housing",Estates & Investments,WGNE,Capital Expenditure,Payments to Contractor,R M F LANDSCAPING LTD,21/06/2012, 575.00 
"Development, Business & Housing",Estates & Investments,WGNE,Capital Expenditure,Payments to Contractor,RODGERS LEASK ENVIRONMENTAL LTD,14/06/2012," 11,800.00 "
"Development, Business & Housing",Estates & Investments,CEAC,Supplies & Services,Security Services,BUSINESS WATCH GUARDING LIMITED,14/06/2012," 1,981.19 "
"Development, Business & Housing",Estates & Investments,CEAC,Income,Service Charges,MAINSTAY PAYMENTS LTD,21/06/2012," 3,607.38 "
"Development, Business & Housing",Estates & Investments,CEAE,Premises-Related Expenditure,R&M -Building Other,GENERAL ASPHALTE COMPANY LIMITED,06/06/2012, 617.76 
"Development, Business & Housing",Estates & Investments,CEAE,Premises-Related Expenditure,Electricity,West Mercia Energy (WME),06/06/2012, 520.51 
"Development, Business & Housing",Estates & Investments,CEAE,Premises-Related Expenditure,Electricity,West Mercia Energy (WME),06/06/2012," 3,741.99 "
"Development, Business & Housing",Estates & Investments,CEAE,Premises-Related Expenditure,Electricity,West Mercia Energy (WME),14/06/2012, 505.99 
"Development, Business & Housing",Estates & Investments,CEAE,Premises-Related Expenditure,Water Rates,SEVERN TRENT WATER LTD,14/06/2012," 1,119.48 "
"Development, Business & Housing",Estates & Investments,CEAE,Supplies & Services,Security Services,BUSINESS WATCH GUARDING LIMITED,14/06/2012," 1,494.75 "
"Development, Business & Housing",Estates & Investments,CEAE,Supplies & Services,Security Services,BUSINESS WATCH GUARDING LIMITED,15/06/2012," 2,586.72 "
"Development, Business & Housing",Estates & Investments,CEAH,Premises-Related Expenditure,R&M -Buildings DLO Charge,GRANVILLE CONSTRUCTION & MAINTENANCE LTD,14/06/2012, 510.00 
"Development, Business & Housing",Estates & Investments,CEAH,Premises-Related Expenditure,R&M -Building Other,ARROW ENERGY SOLUTIONS LTD,15/06/2012," 1,200.00 "
"Development, Business & Housing",Estates & Investments,CEAH,Premises-Related Expenditure,R&M -Building Other,PRYCE (BUILDERS) LTD,15/06/2012," 1,696.00 "
"Development, Business & Housing",Estates & Investments,CEAH,Premises-Related Expenditure,R&M -Building Other,GRANVILLE CONSTRUCTION & MAINTENANCE LTD,21/06/2012, 884.00 
"Development, Business & Housing",Estates & Investments,CEAH,Premises-Related Expenditure,Insurance Loss Over 250,WELLINGTON INSULATION CO. LTD,21/06/2012," 2,665.00 "
"Development, Business & Housing",Estates & Investments,CEAH,Supplies & Services,Consultants Fees,JOHNSON FELLOWS,14/06/2012, 500.00 
"Development, Business & Housing",Estates & Investments,CEAH,Supplies & Services,Payment Of Income Collected,COMBINED PROPERTY CONTROL,26/06/2012," 110,150.73 "
"Development, Business & Housing",Estates & Investments,CEAN,Premises-Related Expenditure,R&M -Buildings DLO Charge,West Mercia Energy (WME),12/06/2012," 1,180.13 "
"Development, Business & Housing",Estates & Investments,CEAN,Premises-Related Expenditure,R&M -Building Other,JONES & HAMPTON LTD,06/06/2012," 1,316.45 "
"Development, Business & Housing",Estates & Investments,CEAN,Premises-Related Expenditure,Electricity,NPOWER LIMITED,19/06/2012," 2,438.60 "
"Development, Business & Housing",Estates & Investments,CEAN,Premises-Related Expenditure,Water Rates,SEVERN TRENT WATER LTD,22/06/2012," 2,153.91 "
"Development, Business & Housing",Estates & Investments,CEAN,Premises-Related Expenditure,Contract Cleaning,TELFORD & WREKIN SERVICES LTD,06/06/2012," 2,315.54 "
"Development, Business & Housing",Estates & Investments,CEAN,Premises-Related Expenditure,Grounds Maintenance - L&CS,ASHTENNE ASSET MANAGEMENT LTD,06/06/2012, 757.71 
"Development, Business & Housing",Estates & Investments,CEAN,Premises-Related Expenditure,Grounds Maintenance - L&CS,TELFORD & WREKIN SERVICES LTD,06/06/2012, 550.00 
"Development, Business & Housing",Estates & Investments,CEAN,Supplies & Services,Security Services,BUSINESS WATCH GUARDING LIMITED,15/06/2012," 2,586.72 "
"Development, Business & Housing",Estates & Investments,CEAN,Supplies & Services,Security Services,BUSINESS WATCH GUARDING LIMITED,15/06/2012, 644.64 
"Development, Business & Housing",Estates & Investments,CEAN,Income,Service Charges,SMP SARL I,14/06/2012," 1,261.69 "
"Development, Business & Housing",Estates & Investments,CEAN,Income,Service Charges,SMP SARL I,14/06/2012," 1,261.69 "
"Development, Business & Housing",Estates & Investments,CEAN,Income,Service Charges,ORBIT PROPERTY MANAGEMENT LTD,13/06/2012," 1,317.62 "
"Development, Business & Housing",Operational Property,WCAY,Capital Expenditure,Payments to Contractor,DMW ENVIRONMENTAL SAFETY LTD,13/06/2012," 1,500.00 "
"Development, Business & Housing",Operational Property,WCAY,Capital Expenditure,Payments to Contractor,FINNIGAN & HARPER LIMITED,13/06/2012," 2,618.00 "
"Development, Business & Housing",Operational Property,WCAY,Capital Expenditure,Payments to Contractor,FINNIGAN & HARPER LIMITED,13/06/2012," 3,536.00 "
"Development, Business & Housing",Operational Property,WCAY,Capital Expenditure,Payments to Contractor,FINNIGAN & HARPER LIMITED,13/06/2012, 960.00 
"Development, Business & Housing",Operational Property,WCAY,Capital Expenditure,Payments to Contractor,KRM CONTRACTORS LTD,13/06/2012," 12,385.91 "
"Development, Business & Housing",Operational Property,WCAY,Capital Expenditure,Payments to Contractor,FINNIGAN & HARPER LIMITED,13/06/2012," 10,554.00 "
"Development, Business & Housing",Operational Property,WCAY,Capital Expenditure,Payments to Contractor,KRM CONTRACTORS LTD,29/06/2012," 31,934.36 "
"Development, Business & Housing",Operational Property,WCAY,Capital Expenditure,Payments to Contractor,JORDAN LEWIS ASSOCIATES LTD,21/06/2012," 21,420.00 "
"Development, Business & Housing",Operational Property,WCAY,Capital Expenditure,Payments to Contractor,KRM CONTRACTORS LTD,21/06/2012," 41,478.50 "
"Development, Business & Housing",Operational Property,WCAY,Capital Expenditure,Payments to Contractor,HARROW GREEN LIMITED,21/06/2012," 1,378.75 "
"Development, Business & Housing",Operational Property,WCAY,Capital Expenditure,Payments to Contractor,HARROW GREEN LIMITED,21/06/2012," 1,730.20 "
"Development, Business & Housing",Operational Property,WCAY,Capital Expenditure,Payments to Contractor,KRM CONTRACTORS LTD,21/06/2012," 3,482.70 "
"Development, Business & Housing",Operational Property,WCAY,Capital Expenditure,Payments to Contractor,MOTT MACDONALD LIMITED,21/06/2012," 4,400.00 "
"Development, Business & Housing",Operational Property,WCAY,Capital Expenditure,Payments to Contractor,KRM CONTRACTORS LTD,21/06/2012," 5,341.79 "
"Development, Business & Housing",Operational Property,WCAY,Capital Expenditure,Payments to Contractor,HARROW GREEN LIMITED,18/06/2012," 2,545.40 "
"Development, Business & Housing",Operational Property,WCAY,Capital Expenditure,Payments to Contractor,HARROW GREEN LIMITED,18/06/2012," 1,165.90 "
"Development, Business & Housing",Operational Property,WCAY,Capital Expenditure,Payments to Contractor,HARROW GREEN LIMITED,18/06/2012, 707.60 
"Development, Business & Housing",Operational Property,WCAY,Capital Expenditure,Payments to Contractor,HARROW GREEN LIMITED,18/06/2012," 1,551.00 "
"Development, Business & Housing",Operational Property,WCAY,Capital Expenditure,Payments to Contractor,HARROW GREEN LIMITED,18/06/2012, 672.00 
"Development, Business & Housing",Operational Property,WCAY,Capital Expenditure,Payments to Contractor,HARROW GREEN LIMITED,18/06/2012, 722.98 
"Development, Business & Housing",Operational Property,WCAY,Capital Expenditure,Payments to Contractor,HARROW GREEN LIMITED,18/06/2012, 712.40 
"Development, Business & Housing",Operational Property,WCAY,Capital Expenditure,Payments to Contractor,HARROW GREEN LIMITED,18/06/2012, 659.56 
"Development, Business & Housing",Operational Property,WCAY,Capital Expenditure,Payments to Contractor,HARROW GREEN LIMITED,18/06/2012, 865.12 
"Development, Business & Housing",Operational Property,WCAY,Capital Expenditure,Payments to Contractor,HARROW GREEN LIMITED,18/06/2012, 581.90 
"Development, Business & Housing",Operational Property,WCAY,Capital Expenditure,Payments to Contractor,HARROW GREEN LIMITED,18/06/2012," 1,924.50 "
"Development, Business & Housing",Operational Property,WCAY,Capital Expenditure,Payments to Contractor,HARROW GREEN LIMITED,18/06/2012, 861.40 
"Development, Business & Housing",Operational Property,WCAY,Capital Expenditure,Payments to Contractor,KRM CONTRACTORS LTD,18/06/2012," 115,587.99 "
"Development, Business & Housing",Operational Property,WCBA,Capital Expenditure,Payments to Contractor,PP ELECTRICAL SERVICES,15/06/2012, 650.00 
"Development, Business & Housing",Operational Property,WCBA,Capital Expenditure,Payments to Contractor,WINDOW & DOOR CONTRACT SERVICES,22/06/2012, 829.76 
"Development, Business & Housing",Operational Property,WCBA,Capital Expenditure,Payments to Contractor,GRANVILLE CONSTRUCTION & MAINTENANCE LTD,15/06/2012, 726.52 
"Development, Business & Housing",Operational Property,WCOA,Capital Expenditure,Payments to Contractor,PRYCE (BUILDERS) LTD,14/06/2012," 20,682.45 "
"Development, Business & Housing",Operational Property,WCOA,Capital Expenditure,Payments to Contractor,VIRGIN MEDIA BUSINESS,14/06/2012," 1,728.07 "
"Development, Business & Housing",Operational Property,WFAS,Capital Expenditure,Payments to Contractor,RCS ROOFING CONSTRUCTION SERVICES LTD,13/06/2012," 4,202.00 "
"Development, Business & Housing",Operational Property,WGCF,Capital Expenditure,Payments to Contractor,ERIC NEVILLE CATERING SUPPLIES LTD,22/06/2012," 3,940.00 "
"Development, Business & Housing",Operational Property,WGCF,Capital Expenditure,Other Capital Expenditure,PEGASUS PLANNING GROUP LLP,26/06/2012," 2,140.00 "
"Development, Business & Housing",Operational Property,WPJF,Capital Expenditure,Payments to Contractor,DMW ENVIRONMENTAL SAFETY LTD,22/06/2012," 1,050.00 "
"Development, Business & Housing",Operational Property,WPRH,Capital Expenditure,Payments to Contractor,GRANVILLE CONSTRUCTION & MAINTENANCE LTD,22/06/2012," 3,153.34 "
"Development, Business & Housing",Operational Property,CAAG,Supplies & Services,Consultants Fees,OLIVEJOYCE LTD,29/06/2012, 616.00 
"Development, Business & Housing",Operational Property,CAAG,Supplies & Services,Consultants Fees,JORDAN LEWIS ASSOCIATES LTD,21/06/2012," 3,060.00 "
"Development, Business & Housing",Operational Property,CAAG,Income,Fees & Charges General,HOARE LEA CONSULTING ENGINEERS,22/06/2012," 2,625.00 "
"Development, Business & Housing",Operational Property,CAAG,Income,Fees & Charges General,OCLC (UK) LIMITED,21/06/2012,"-4,837.50 "
"Development, Business & Housing",Operational Property,CAAH,Premises-Related Expenditure,R&M -Buildings DLO Charge,PP ELECTRICAL SERVICES,15/06/2012," 1,479.00 "
"Development, Business & Housing",Operational Property,CAAH,Premises-Related Expenditure,R&M -Buildings DLO Charge,GRANVILLE CONSTRUCTION & MAINTENANCE LTD,14/06/2012, 565.63 
"Development, Business & Housing",Operational Property,CAAH,Premises-Related Expenditure,R&M -Buildings DLO Charge,SHROPSHIRE HEATING SERVICES LTD,14/06/2012, 722.75 
"Development, Business & Housing",Operational Property,CAAH,Premises-Related Expenditure,R&M -Buildings DLO Charge,SHROPSHIRE HEATING SERVICES LTD,14/06/2012, 531.36 
"Development, Business & Housing",Operational Property,CAAH,Premises-Related Expenditure,R&M -Buildings DLO Charge,SHROPSHIRE HEATING SERVICES LTD,14/06/2012, 535.68 
"Development, Business & Housing",Operational Property,CAAH,Premises-Related Expenditure,R&M -Buildings DLO Charge,TAYLORS MECHANICAL H & P SERVICES LTD,14/06/2012, 797.00 
"Development, Business & Housing",Operational Property,CEAR,Premises-Related Expenditure,R&M -Buildings DLO Charge,BOW CONSTRUCTION LTD,22/06/2012," 15,913.88 "
"Development, Business & Housing",Operational Property,COAE,Premises-Related Expenditure,Electricity,West Mercia Energy (WME),25/06/2012," 10,822.17 "
"Development, Business & Housing",Operational Property,COAE,Premises-Related Expenditure,Electricity,West Mercia Energy (WME),25/06/2012," 1,222.65 "
"Development, Business & Housing",Operational Property,COAE,Premises-Related Expenditure,Electricity,West Mercia Energy (WME),25/06/2012," 11,256.00 "
"Development, Business & Housing",Operational Property,COAE,Premises-Related Expenditure,Electricity,West Mercia Energy (WME),26/06/2012," 1,107.65 "
"Development, Business & Housing",Operational Property,COAE,Premises-Related Expenditure,Gas,West Mercia Energy (WME),25/06/2012," 2,976.81 "
"Development, Business & Housing",Operational Property,COAE,Premises-Related Expenditure,Gas,WEST MERCIA SUPPLIES Catalogue Supplies (None Utility),25/06/2012," 1,723.28 "
"Development, Business & Housing",Operational Property,COAE,Premises-Related Expenditure,Gas,West Mercia Energy (WME),11/06/2012," 4,625.11 "
"Development, Business & Housing",Operational Property,COAE,Premises-Related Expenditure,Gas,West Mercia Energy (WME),11/06/2012," 2,252.03 "
"Development, Business & Housing",Operational Property,COAG,Premises-Related Expenditure,R&M -SCC Planned,TREBLE PUMPING SERVICES LTD,01/06/2012, 636.00 
"Development, Business & Housing",Operational Property,COAG,Premises-Related Expenditure,R&M WC Planned,SKI SLOPE SERVICES LTD,22/06/2012, 609.68 
"Development, Business & Housing",Operational Property,COAG,Premises-Related Expenditure,R&M WC Planned,PP ELECTRICAL SERVICES,22/06/2012, 899.38 
"Development, Business & Housing",Operational Property,COAG,Premises-Related Expenditure,R&M Fixed Plant Other,ERIC NEVILLE CATERING SUPPLIES LTD,29/06/2012, 991.46 
"Development, Business & Housing",Operational Property,COAG,Premises-Related Expenditure,Leasehold Rents,CHUBB FIRE LIMITED,22/06/2012, 921.63 
"Development, Business & Housing",Operational Property,COAH,Premises-Related Expenditure,Electricity,BRITISH GAS BUSINESS (ELECTRICITY),11/06/2012," 1,026.51 "
"Development, Business & Housing",Operational Property,COAH,Premises-Related Expenditure,Electricity,NPOWER LIMITED,11/06/2012," 1,044.90 "
"Development, Business & Housing",Operational Property,COAH,Premises-Related Expenditure,General Rents,WREKIN FARMERS LTD,13/06/2012,"-2,250.00 "
"Development, Business & Housing",Operational Property,COAH,Premises-Related Expenditure,Water Rates,SEVERN TRENT WATER LTD,11/06/2012," 1,711.56 "
"Development, Business & Housing",Operational Property,COAH,Premises-Related Expenditure,Sewage Charges,SEVERN TRENT WATER LTD,12/06/2012," 1,978.33 "
"Development, Business & Housing",Operational Property,COAJ,Premises-Related Expenditure,Electricity,BRITISH GAS BUSINESS,14/06/2012, 522.51 
"Development, Business & Housing",Operational Property,COAP,Premises-Related Expenditure,R&M -Buildings DLO Charge,OSPREY WATER MANAGEMENT LTD,13/06/2012, 602.57 
"Development, Business & Housing",Operational Property,COAP,Premises-Related Expenditure,R&M -Buildings DLO Charge,D P WILCOX & SON,13/06/2012," 1,000.80 "
"Development, Business & Housing",Operational Property,COAP,Premises-Related Expenditure,Service Contracts,GRA-BERN,13/06/2012," 1,142.40 "
"Development, Business & Housing",Operational Property,COAP,Premises-Related Expenditure,R&M - Mechanical,SHROPSHIRE HEATING SERVICES LTD,13/06/2012, 519.59 
"Development, Business & Housing",Operational Property,COAP,Premises-Related Expenditure,Electricity,West Mercia Energy (WME),13/06/2012, 650.04 
"Development, Business & Housing",Operational Property,COAP,Premises-Related Expenditure,Electricity,West Mercia Energy (WME),13/06/2012," 2,141.89 "
"Development, Business & Housing",Operational Property,COAP,Premises-Related Expenditure,Gas,West Mercia Energy (WME),13/06/2012," 1,850.99 "
"Development, Business & Housing",Property & ICT,WCAN,Capital Expenditure,Payments to Contractor,VPS (UK) LTD,06/06/2012," 1,123.50 "
"Development, Business & Housing",Property & ICT,WCAN,Capital Expenditure,Payments to Contractor,JORDAN LEWIS ASSOCIATES LTD,06/06/2012," 3,462.00 "
"Development, Business & Housing",Property & ICT,WCAN,Capital Expenditure,Payments to Contractor,SEVERN TRENT WATER LTD,14/06/2012, 619.12 
"Development, Business & Housing",Property & ICT,WCAN,Capital Expenditure,Site Investigation,DMW ENVIRONMENTAL SAFETY LTD,08/06/2012, 950.00 
"Development, Business & Housing",Property & ICT,WCAR,Capital Expenditure,Payments to Contractor,JACOBS ENGINEERING UK LIMITED,13/06/2012," 6,979.70 "
"Development, Business & Housing",Town Centre Project,WCCA,Capital Expenditure,External Professional Fees,SEVERN TRENT WATER LTD,19/06/2012," 10,404.00 "
Economy & Skills,Enterprise & Employment,AEAC,Supplies & Services,Libraries Book Fund,HEREFORDSHIRE COUNCIL,20/06/2012," 13,029.00 "
Economy & Skills,Enterprise & Employment,CEAB,Premises-Related Expenditure,Other,JOHN G RUSSELL (TRANSPORT) LTD,22/06/2012," 2,250.00 "
Economy & Skills,Enterprise & Employment,CEAB,Premises-Related Expenditure,Other,JOHN G RUSSELL (TRANSPORT) LTD,18/06/2012," 2,250.00 "
Economy & Skills,Enterprise & Employment,CEAB,Premises-Related Expenditure,Other,JOHN G RUSSELL (TRANSPORT) LTD,18/06/2012," 2,250.00 "
Economy & Skills,Enterprise & Employment,CEAB,Premises-Related Expenditure,Other,JOHN G RUSSELL (TRANSPORT) LTD,22/06/2012," 2,250.00 "
Economy & Skills,Enterprise & Employment,CEAB,Premises-Related Expenditure,Other,JOHN G RUSSELL (TRANSPORT) LTD,22/06/2012," 2,250.00 "
Economy & Skills,Enterprise & Employment,CEAB,Premises-Related Expenditure,Other,JOHN G RUSSELL (TRANSPORT) LTD,22/06/2012," 2,250.00 "
Economy & Skills,Enterprise & Employment,CEAB,Premises-Related Expenditure,Other,JOHN G RUSSELL (TRANSPORT) LTD,22/06/2012," 2,250.00 "
Economy & Skills,Enterprise & Employment,CEAB,Premises-Related Expenditure,Other,JOHN G RUSSELL (TRANSPORT) LTD,22/06/2012," 2,250.00 "
Economy & Skills,Lifelong Learning,ALAA,Third Party Payments,Childminders,CHILDCARE SOS,25/06/2012, 694.00 
Economy & Skills,Lifelong Learning,ALAA,Third Party Payments,Childminders,CHILDCARE SOS,25/06/2012, 740.55 
Economy & Skills,Lifelong Learning,ALAA,Third Party Payments,Childminders,CHILDCARE SOS,25/06/2012," 1,588.02 "
Economy & Skills,Strategic Regeneration & Borough Towns Initiative,WASB,Capital Expenditure,External Professional Fees,Context 4D,18/06/2012," 1,650.00 "
"Education, Culture & Skills",Arts & Culture,LCAE,Supplies & Services,Artistes Fees,Angela Browne Ltd,12/06/2012, 711.00 
"Education, Culture & Skills",Arts & Culture,LCAE,Supplies & Services,Artistes Fees,PREMIER STAGE PRODUCTIONS LTD,20/06/2012," 4,283.78 "
"Education, Culture & Skills",Arts & Culture,LCAE,Supplies & Services,Artistes Fees,Alan Field Associates,12/06/2012," 3,576.55 "
"Education, Culture & Skills",Arts & Culture,LCAE,Supplies & Services,Artistes Fees,OFF THE KERB PRODUCTIONS,21/06/2012," 5,658.88 "
"Education, Culture & Skills",Arts & Culture,LCAE,Supplies & Services,Artistes Fees,Live Nation (Music) UK Ltd,29/06/2012," 4,112.87 "
"Education, Culture & Skills",Arts & Culture,LCAF,Supplies & Services,Artistes Fees,Good Turn Management,19/06/2012," 2,053.74 "
"Education, Culture & Skills",Arts & Culture,LCAN,Supplies & Services,Wet Resale Provision,MOLSON COORS BREWING COMPANY UK LTD,14/06/2012, 832.81 
"Education, Culture & Skills",Arts & Culture,LCAS,Transport-Related Expenditure,Purchase Vehicles and Plant,DIAMOND CARS (TELFORD) LTD,20/06/2012, 750.00 
"Education, Culture & Skills",Arts & Culture,LCAS,Transport-Related Expenditure,Outside Hire,SHAWS TRAVEL LTD,11/06/2012," 1,560.00 "
"Education, Culture & Skills",Arts & Culture,LCAS,Supplies & Services,Licences,SIGNS EXPRESS (TELFORD),13/06/2012, 509.00 
"Education, Culture & Skills",Arts & Culture,LCAS,Supplies & Services,Printing - Other,SHROPSHIRE PRINT & EMBROIDERY LTD,18/06/2012, 887.50 
"Education, Culture & Skills",Arts & Culture,LCAS,Supplies & Services,Artistes Fees,Fool's Paradise Ltd,20/06/2012," 1,205.00 "
"Education, Culture & Skills",Arts & Culture,LCAS,Supplies & Services,Artistes Fees,THE CULTURAL SISTERS,29/06/2012," 6,200.00 "
"Education, Culture & Skills",Arts & Culture,LCAS,Supplies & Services,Security Services,RMP SPECIALIST SERVICES LIMITED,18/06/2012, 542.30 
"Education, Culture & Skills",Arts & Culture,LCAS,Supplies & Services,First Aid,Ambtrans UK Ltd,11/06/2012, 540.00 
"Education, Culture & Skills",School Improvement,KHAB,Supplies & Services,Equipment - Purchase,AT BROWN (COACHES) LTD,26/06/2012," 1,248.00 "
"Education, Culture & Skills",School Improvement,KSAP,Supplies & Services,Consultants Fees,REDACTED PERSONAL INFORMATION,15/06/2012, 500.00 
"Education, Culture & Skills",School Improvement,KSAP,Supplies & Services,Subscriptions,CLEAPSS,12/06/2012," 2,870.50 "
"Education, Culture & Skills",School Improvement Secondary,WKAT,Capital Expenditure,Computer Hardware,SPECIALIST COMPUTERS CENTRES PLC,26/06/2012, 756.20 
"Education, Culture & Skills",School Improvement Secondary,KSAC,Third Party Payments,Private Contractors,THE EDUCATION DEVELOPMENT SERVICE LTD,28/06/2012, 700.00 
"Education, Culture & Skills",School Improvement Secondary,KSAC,Third Party Payments,Private Contractors,THE EDUCATION DEVELOPMENT SERVICE LTD,28/06/2012," 1,900.00 "
"Education, Culture & Skills",School Improvement Secondary,KSAC,Third Party Payments,Private Contractors,STAFF SELECT LTD T/A NOVA TRAINING LTD,26/06/2012," 5,000.00 "
"Education, Culture & Skills",School Improvement Secondary,KTAA,Supplies & Services,Software Purchases,FORENSIC SOFTWARE LTD,26/06/2012," 2,929.00 "
Environment & Leisure Services,Environment & Open Space,WEAJ,Capital Expenditure,Payments to Contractor,BONINGALE NURSERIES,19/06/2012," 3,325.80 "
Environment & Leisure Services,Environment & Open Space,WEAJ,Capital Expenditure,Payments to Contractor,DINGLE NURSERIES,26/06/2012, 680.00 
Environment & Leisure Services,Environment & Open Space,EPAF,Supplies & Services,Sub Contractors,TELFORD & WREKIN SERVICES LTD,26/06/2012," 1,982.68 "
Environment & Leisure Services,Environment & Open Space,EPAF,Supplies & Services,Sub Contractors,TELFORD & WREKIN SERVICES LTD,26/06/2012," 2,822.32 "
Environment & Leisure Services,Environment & Open Space,EPAF,Supplies & Services,Sub Contractors,TELFORD & WREKIN SERVICES LTD,26/06/2012," 1,425.60 "
Environment & Leisure Services,Environment & Open Space,EPAF,Supplies & Services,Sub Contractors,TELFORD & WREKIN SERVICES LTD,26/06/2012, 516.72 
Environment & Leisure Services,Environment & Open Space,EPAF,Supplies & Services,Security Services,BUSINESS WATCH GUARDING LIMITED,20/06/2012, 592.60 
Environment & Leisure Services,Environment & Open Space,EWAE,Supplies & Services,Highways Equipment,SITA UK,20/06/2012," 19,804.89 "
Environment & Leisure Services,Environment & Open Space,EWAE,Supplies & Services,Service Contracts,SRCL LTD,06/06/2012," 1,008.00 "
Environment & Leisure Services,Environment & Open Space,EWAE,Supplies & Services,Service Contracts,SITA UK,20/06/2012, 707.07 
Environment & Leisure Services,Environment & Open Space,ECAA,Supplies & Services,Bulk Refuse Contracts Purch,CRAEMER UK LTD,11/06/2012," 15,120.00 "
Environment & Leisure Services,Environment & Open Space,ECAA,Supplies & Services,Bulk Refuse Contracts Purch,CRAEMER UK LTD,11/06/2012," 7,560.00 "
Environment & Leisure Services,Environment & Open Space,ECAH,Third Party Payments,Contractor Recharge,TELFORD & WREKIN SERVICES LTD,25/06/2012," 96,751.25 "
Environment & Leisure Services,Environment & Open Space,EEAB,Supplies & Services,Other Materials,PICTORIAL MEADOWS,15/06/2012," 4,111.67 "
Environment & Leisure Services,Environment & Open Space,EHBM,Third Party Payments,Private Contractors,TELFORD & WREKIN SERVICES LTD,25/06/2012," 780,913.47 "
Environment & Leisure Services,Environment & Open Space,EHBM,Third Party Payments,Private Contractors,TELFORD & WREKIN SERVICES LTD,25/06/2012," 119,285.81 "
Environment & Leisure Services,Highways & Engineering,WEAC,Capital Expenditure,Payments to Contractor,OLSWANG LLP,22/06/2012," 1,016.00 "
Environment & Leisure Services,Highways & Engineering,WEAC,Capital Expenditure,Payments to Contractor,E.ON UK ENERGY SERVICES LTD,19/06/2012," 7,035.00 "
Environment & Leisure Services,Highways & Engineering,WEAC,Capital Expenditure,Payments to Contractor,S J HOPKINS STREETLIGHTING,22/06/2012," 2,988.80 "
Environment & Leisure Services,Highways & Engineering,WEAC,Capital Expenditure,Payments to Contractor,S J HOPKINS STREETLIGHTING,22/06/2012," 1,120.80 "
Environment & Leisure Services,Highways & Engineering,WEAD,Capital Expenditure,Payments to Contractor,A HAND SERVICES LTD,12/06/2012, 876.00 
Environment & Leisure Services,Highways & Engineering,WEAF,Capital Expenditure,Payments to Contractor,MCPHILLIPS (WELLINGTON) LTD,12/06/2012," 10,507.53 "
Environment & Leisure Services,Highways & Engineering,WEAG,Capital Expenditure,Payments to Contractor,Forkers Ltd,20/06/2012," 45,832.02 "
Environment & Leisure Services,Highways & Engineering,WEAH,Capital Expenditure,Payments to Contractor,JACOBS ENGINEERING UK LIMITED,13/06/2012," 1,850.68 "
Environment & Leisure Services,Highways & Engineering,WEAH,Capital Expenditure,Payments to Contractor,JACOBS ENGINEERING UK LIMITED,13/06/2012," 2,832.90 "
Environment & Leisure Services,Highways & Engineering,WEAH,Capital Expenditure,Payments to Contractor,Kilo Ltd,13/06/2012," 1,465.00 "
Environment & Leisure Services,Highways & Engineering,EHAM,Premises-Related Expenditure,Ad-hoc Maintenance,PRYSMIAN CABLES & SYSTEMS LTD,26/06/2012, 612.92 
Environment & Leisure Services,Highways & Engineering,EHAM,Premises-Related Expenditure,Ad-hoc Maintenance,PRYSMIAN CABLES & SYSTEMS LTD,26/06/2012," 2,132.36 "
Environment & Leisure Services,Highways & Engineering,EHAM,Premises-Related Expenditure,Ad-hoc Maintenance,PRYSMIAN CABLES & SYSTEMS LTD,26/06/2012, 765.68 
Environment & Leisure Services,Highways & Engineering,EHAM,Premises-Related Expenditure,Ad-hoc Maintenance,PRYSMIAN CABLES & SYSTEMS LTD,26/06/2012," 1,125.64 "
Environment & Leisure Services,Highways & Engineering,EHAM,Premises-Related Expenditure,Ad-hoc Maintenance,PRYSMIAN CABLES & SYSTEMS LTD,26/06/2012, 817.82 
Environment & Leisure Services,Highways & Engineering,EHAM,Premises-Related Expenditure,Ad-hoc Maintenance,PRYSMIAN CABLES & SYSTEMS LTD,26/06/2012," 2,356.40 "
Environment & Leisure Services,Highways & Engineering,EHAM,Premises-Related Expenditure,Ad-hoc Maintenance,PRYSMIAN CABLES & SYSTEMS LTD,01/06/2012, 502.91 
Environment & Leisure Services,Highways & Engineering,EHAM,Premises-Related Expenditure,Ad-hoc Maintenance,PRYSMIAN CABLES & SYSTEMS LTD,01/06/2012, 560.31 
Environment & Leisure Services,Highways & Engineering,EHAM,Premises-Related Expenditure,Ad-hoc Maintenance,PRYSMIAN CABLES & SYSTEMS LTD,01/06/2012," 1,698.20 "
Environment & Leisure Services,Highways & Engineering,EHAM,Premises-Related Expenditure,Ad-hoc Maintenance,PRYSMIAN CABLES & SYSTEMS LTD,01/06/2012, 529.13 
Environment & Leisure Services,Highways & Engineering,EHAN,Premises-Related Expenditure,Ad-hoc Maintenance,PRYSMIAN CABLES & SYSTEMS LTD,26/06/2012, 531.65 
Environment & Leisure Services,Highways & Engineering,EHAP,Premises-Related Expenditure,Ad-hoc Maintenance,PRYSMIAN CABLES & SYSTEMS LTD,26/06/2012, 674.81 
Environment & Leisure Services,Highways & Engineering,EHAP,Premises-Related Expenditure,Ad-hoc Maintenance,PRYSMIAN CABLES & SYSTEMS LTD,01/06/2012, 516.82 
Environment & Leisure Services,Highways & Engineering,EHAS,Premises-Related Expenditure,Ad-hoc Maintenance,PRYSMIAN CABLES & SYSTEMS LTD,26/06/2012," 2,132.36 "
Environment & Leisure Services,Highways & Engineering,EHAS,Premises-Related Expenditure,Ad-hoc Maintenance,PRYSMIAN CABLES & SYSTEMS LTD,26/06/2012," 2,132.36 "
Environment & Leisure Services,Highways & Engineering,EHBC,Premises-Related Expenditure,Ad-hoc Maintenance,PRYSMIAN CABLES & SYSTEMS LTD,26/06/2012," 2,132.37 "
Environment & Leisure Services,Highways & Engineering,EHBC,Premises-Related Expenditure,Ad-hoc Maintenance,PRYSMIAN CABLES & SYSTEMS LTD,26/06/2012," 1,144.92 "
Environment & Leisure Services,Highways & Engineering,EHBC,Premises-Related Expenditure,Ad-hoc Maintenance,PRYSMIAN CABLES & SYSTEMS LTD,01/06/2012," 3,067.22 "
Environment & Leisure Services,Highways & Engineering,EHBC,Premises-Related Expenditure,Ad-hoc Maintenance,PRYSMIAN CABLES & SYSTEMS LTD,01/06/2012," 4,950.91 "
Environment & Leisure Services,Highways & Engineering,EHBC,Premises-Related Expenditure,Ad-hoc Maintenance,PRYSMIAN CABLES & SYSTEMS LTD,22/06/2012," 7,364.92 "
Environment & Leisure Services,Highways & Engineering,ESAA,Supplies & Services,Comp Hardware (Purch / Hire),EXCITECH LTD,01/06/2012," 1,000.00 "
Environment & Leisure Services,Highways & Engineering,ESAA,Supplies & Services,Comp Hardware (Purch / Hire),EXCITECH LTD,01/06/2012, 950.00 
Environment & Leisure Services,Highways & Engineering,ESAA,Supplies & Services,Comp Hardware (Purch / Hire),EXCITECH LTD,01/06/2012," 1,950.00 "
Environment & Leisure Services,Highways & Engineering,ESAC,Premises-Related Expenditure,R&M WC Planned,MCPHILLIPS (WELLINGTON) LTD,01/06/2012," 33,640.69 "
Environment & Leisure Services,Highways & Engineering,ESAC,Premises-Related Expenditure,R&M WC Planned,MCPHILLIPS (WELLINGTON) LTD,22/06/2012," 5,697.97 "
Environment & Leisure Services,Highways & Engineering,ESAE,Supplies & Services,Other Expenses,Micro Drainage Limited,18/06/2012," 1,848.19 "
Environment & Leisure Services,Highways & Transport,WEAR,Capital Expenditure,Payments to Contractor,MCPHILLIPS (WELLINGTON) LTD,29/06/2012," 175,774.89 "
Environment & Leisure Services,Highways & Transport,WEAR,Capital Expenditure,Payments to Contractor,S P HOLDING TRACTOR HIRE LTD,20/06/2012, 547.00 
Environment & Leisure Services,Highways & Transport,WEAR,Capital Expenditure,Payments to Contractor,TRAFFIC & COMMERCIAL SIGNS LTD,20/06/2012," 29,435.03 "
Environment & Leisure Services,Highways & Transport,EHAB,Premises-Related Expenditure,Grounds Maintenance - L&CS,MORTON ATKINSON ASSOCIATES,15/06/2012," 1,350.00 "
Environment & Leisure Services,Highways & Transport,EHAD,Supplies & Services,Consultants Fees,JACOBS ENGINEERING UK LIMITED,08/06/2012," 35,000.00 "
Environment & Leisure Services,Highways & Transport,EHAD,Supplies & Services,Consultants Fees,JACOBS ENGINEERING UK LIMITED,29/06/2012," 10,320.54 "
Environment & Leisure Services,Highways & Transport,EHBD,Premises-Related Expenditure,R&M MEB Contract Maintenance,PEEK TRAFFIC LTD,19/06/2012," 1,045.16 "
Environment & Leisure Services,Highways & Transport,EHBD,Premises-Related Expenditure,R&M MEB Contract Maintenance,PEEK TRAFFIC LTD,19/06/2012," 1,919.89 "
Environment & Leisure Services,Highways & Transport,EHBE,Capital Financing Costs,Leased Buildings,NETWORK RAIL PROPERTY,20/06/2012, 967.60 
Environment & Leisure Services,Highways & Transport,EHBE,Premises-Related Expenditure,R&M -Buildings DLO Charge,TRAFFIC & COMMERCIAL SIGNS LTD,21/06/2012," 11,244.15 "
Environment & Leisure Services,Highways & Transport,EHBE,Premises-Related Expenditure,R&M -Buildings DLO Charge,TRAFFIC & COMMERCIAL SIGNS LTD,11/06/2012, 940.80 
Environment & Leisure Services,Highways & Transport,EHBK,Employees,Course Fees,Macbrac Training and Development,01/06/2012, 698.00 
Environment & Leisure Services,Highways & Transport,ETAA,Supplies & Services,Concessionary Travel,SHROPSHIRE COUNCIL,12/06/2012," 1,109.00 "
Environment & Leisure Services,Highways & Transport,ETAA,Supplies & Services,Concessionary Travel,ESP Systex,19/06/2012," 1,178.19 "
Environment & Leisure Services,Highways & Transport,ETAB,Premises-Related Expenditure,Contract Cleaning,OCEAN CONTRACT CLEANING LTD,01/06/2012," 3,321.46 "
Environment & Leisure Services,Highways & Transport,ETAE,Transport-Related Expenditure,Parents Reimbursements,REDACTED PERSONAL INFORMATION,13/06/2012, 691.15 
Environment & Leisure Services,Highways & Transport,ETAE,Transport-Related Expenditure,Taxi Costs,DIAMOND CARS (TELFORD) LTD,29/06/2012, 538.56 
Environment & Leisure Services,Highways & Transport,ETAE,Transport-Related Expenditure,Taxi Costs,NSL Limited t/a Patient First Group,26/06/2012, 523.26 
Environment & Leisure Services,Highways & Transport,ETAE,Transport-Related Expenditure,Taxi Costs,COMMUNITY MOBILITY TRANSPORT,13/06/2012," 1,662.10 "
Environment & Leisure Services,Highways & Transport,ETAE,Transport-Related Expenditure,Taxi Costs,DIAMOND CARS (TELFORD) LTD,25/06/2012, 901.68 
Environment & Leisure Services,Highways & Transport,ETAE,Transport-Related Expenditure,Taxi Costs,DIAMOND CARS (TELFORD) LTD,29/06/2012," 2,741.60 "
Environment & Leisure Services,Highways & Transport,ETAE,Transport-Related Expenditure,Taxi Costs,DIAMOND CARS (TELFORD) LTD,29/06/2012," 2,199.12 "
Environment & Leisure Services,Highways & Transport,ETAE,Transport-Related Expenditure,Taxi Costs,DIAMOND CARS (TELFORD) LTD,29/06/2012," 1,696.20 "
Environment & Leisure Services,Highways & Transport,ETAE,Transport-Related Expenditure,Taxi Costs,DIAMOND CARS (TELFORD) LTD,29/06/2012," 1,705.44 "
Environment & Leisure Services,Highways & Transport,ETAE,Transport-Related Expenditure,Taxi Costs,DIAMOND CARS (TELFORD) LTD,29/06/2012," 3,239.00 "
Environment & Leisure Services,Highways & Transport,ETAE,Transport-Related Expenditure,Taxi Costs,DIAMOND CARS (TELFORD) LTD,29/06/2012," 1,015.08 "
Environment & Leisure Services,Highways & Transport,ETAE,Transport-Related Expenditure,Taxi Costs,DIAMOND CARS (TELFORD) LTD,29/06/2012," 1,346.40 "
Environment & Leisure Services,Highways & Transport,ETAE,Transport-Related Expenditure,Taxi Costs,COUNTY CARS,26/06/2012, 686.00 
Environment & Leisure Services,Highways & Transport,ETAE,Transport-Related Expenditure,Taxi Costs,CENTRAL TAXIS LTD SHREWSBURY,15/06/2012, 616.00 
Environment & Leisure Services,Highways & Transport,ETAE,Transport-Related Expenditure,Taxi Costs,CENTRAL TAXIS LTD SHREWSBURY,25/06/2012," 1,071.00 "
Environment & Leisure Services,Highways & Transport,ETAE,Transport-Related Expenditure,Contract Hire,ARRIVA MIDLANDS NORTH LIMITED,22/06/2012," 8,826.00 "
Environment & Leisure Services,Highways & Transport,ETAE,Transport-Related Expenditure,Contract Hire - Mini Bus,EXPRESS TRAVEL,29/06/2012," 2,090.00 "
Environment & Leisure Services,Highways & Transport,ETAE,Transport-Related Expenditure,Contract Hire - Mini Bus,EXPRESS TRAVEL,29/06/2012," 2,468.40 "
Environment & Leisure Services,Highways & Transport,ETAE,Transport-Related Expenditure,Contract Hire - Mini Bus,AT BROWN (COACHES) LTD,06/06/2012, 512.33 
Environment & Leisure Services,Highways & Transport,ETAE,Transport-Related Expenditure,Contract Hire - Mini Bus,AT BROWN (COACHES) LTD,06/06/2012, 512.33 
Environment & Leisure Services,Highways & Transport,ETAE,Transport-Related Expenditure,Contract Hire - Mini Bus,AT BROWN (COACHES) LTD,06/06/2012," 1,059.85 "
Environment & Leisure Services,Highways & Transport,ETAE,Transport-Related Expenditure,Contract Hire - Mini Bus,AT BROWN (COACHES) LTD,06/06/2012," 1,007.15 "
Environment & Leisure Services,Highways & Transport,ETAE,Transport-Related Expenditure,Contract Hire - Mini Bus,AT BROWN (COACHES) LTD,06/06/2012," 1,007.15 "
Environment & Leisure Services,Highways & Transport,ETAE,Transport-Related Expenditure,Contract Hire - Mini Bus,AT BROWN (COACHES) LTD,06/06/2012, 976.45 
Environment & Leisure Services,Highways & Transport,ETAE,Transport-Related Expenditure,Contract Hire - Mini Bus,AT BROWN (COACHES) LTD,06/06/2012, 976.45 
Environment & Leisure Services,Highways & Transport,ETAE,Transport-Related Expenditure,Contract Hire - Mini Bus,AT BROWN (COACHES) LTD,06/06/2012, 650.00 
Environment & Leisure Services,Highways & Transport,ETAE,Transport-Related Expenditure,Contract Hire - Mini Bus,AT BROWN (COACHES) LTD,06/06/2012," 1,606.85 "
Environment & Leisure Services,Highways & Transport,ETAE,Transport-Related Expenditure,Contract Hire - Mini Bus,AT BROWN (COACHES) LTD,06/06/2012," 1,156.90 "
Environment & Leisure Services,Highways & Transport,ETAE,Transport-Related Expenditure,Contract Hire - Mini Bus,AT BROWN (COACHES) LTD,06/06/2012, 976.45 
Environment & Leisure Services,Highways & Transport,ETAE,Transport-Related Expenditure,Contract Hire - Mini Bus,AT BROWN (COACHES) LTD,06/06/2012," 1,290.00 "
Environment & Leisure Services,Highways & Transport,ETAE,Transport-Related Expenditure,Contract Hire - Mini Bus,KLM TRAVEL,11/06/2012," 2,034.00 "
Environment & Leisure Services,Highways & Transport,ETAE,Transport-Related Expenditure,Contract Hire - Mini Bus,EXPRESS DRIVEN,12/06/2012," 2,530.00 "
Environment & Leisure Services,Highways & Transport,ETAE,Transport-Related Expenditure,Contract Hire - Mini Bus,AT BROWN (COACHES) LTD,22/06/2012, 805.72 
Environment & Leisure Services,Highways & Transport,ETAE,Transport-Related Expenditure,Contract Hire - Mini Bus,AT BROWN (COACHES) LTD,22/06/2012," 1,032.00 "
Environment & Leisure Services,Highways & Transport,ETAE,Transport-Related Expenditure,Contract Hire - Mini Bus,EXPRESS DRIVEN,18/06/2012," 2,530.00 "
Environment & Leisure Services,Highways & Transport,ETAE,Transport-Related Expenditure,Contract Hire - Mini Bus,AT BROWN (COACHES) LTD,22/06/2012, 847.88 
Environment & Leisure Services,Highways & Transport,ETAE,Transport-Related Expenditure,Contract Hire - Mini Bus,AT BROWN (COACHES) LTD,22/06/2012, 805.72 
Environment & Leisure Services,Highways & Transport,ETAE,Transport-Related Expenditure,Contract Hire - Mini Bus,SHAWS TRAVEL LTD,22/06/2012," 1,958.00 "
Environment & Leisure Services,Highways & Transport,ETAE,Transport-Related Expenditure,Contract Hire - Mini Bus,SHAWS TRAVEL LTD,22/06/2012," 1,958.00 "
Environment & Leisure Services,Highways & Transport,ETAE,Transport-Related Expenditure,Contract Hire - Mini Bus,SHAWS TRAVEL LTD,22/06/2012," 2,068.00 "
Environment & Leisure Services,Highways & Transport,ETAE,Transport-Related Expenditure,Contract Hire - Mini Bus,SHAWS TRAVEL LTD,22/06/2012," 2,068.00 "
Environment & Leisure Services,Highways & Transport,ETAE,Transport-Related Expenditure,Contract Hire - Mini Bus,SHAWS TRAVEL LTD,22/06/2012," 1,804.00 "
Environment & Leisure Services,Highways & Transport,ETAE,Transport-Related Expenditure,Contract Hire - Mini Bus,EXPRESS DRIVEN,14/06/2012," 2,203.08 "
Environment & Leisure Services,Highways & Transport,ETAE,Transport-Related Expenditure,Contract Hire - Mini Bus,EXPRESS DRIVEN,08/06/2012, 540.00 
Environment & Leisure Services,Highways & Transport,ETAE,Transport-Related Expenditure,Contract Hire - Mini Bus,EXPRESS DRIVEN,08/06/2012," 1,979.50 "
Environment & Leisure Services,Highways & Transport,ETAE,Transport-Related Expenditure,Contract Hire - Mini Bus,M & B MINIBUSES LTD,21/06/2012," 3,960.00 "
Environment & Leisure Services,Highways & Transport,ETAE,Transport-Related Expenditure,Contract Hire - Mini Bus,EXPRESS TRAVEL,21/06/2012," 2,090.00 "
Environment & Leisure Services,Highways & Transport,ETAE,Transport-Related Expenditure,Contract Hire - Mini Bus,EXPRESS TRAVEL,21/06/2012," 1,320.00 "
Environment & Leisure Services,Highways & Transport,ETAE,Transport-Related Expenditure,Contract Hire - Mini Bus,AT BROWN (COACHES) LTD,22/06/2012, 781.16 
Environment & Leisure Services,Highways & Transport,ETAE,Transport-Related Expenditure,Contract Hire - Mini Bus,AT BROWN (COACHES) LTD,22/06/2012, 781.16 
Environment & Leisure Services,Highways & Transport,ETAE,Transport-Related Expenditure,Contract Hire - Mini Bus,AT BROWN (COACHES) LTD,22/06/2012, 520.00 
Environment & Leisure Services,Highways & Transport,ETAE,Transport-Related Expenditure,Contract Hire - Mini Bus,AT BROWN (COACHES) LTD,22/06/2012," 1,285.48 "
Environment & Leisure Services,Highways & Transport,ETAE,Transport-Related Expenditure,Contract Hire - Mini Bus,AT BROWN (COACHES) LTD,22/06/2012, 925.52 
Environment & Leisure Services,Highways & Transport,ETAE,Transport-Related Expenditure,Contract Hire - Mini Bus,AT BROWN (COACHES) LTD,22/06/2012, 781.16 
Environment & Leisure Services,Highways & Transport,ETAE,Transport-Related Expenditure,Contract Hire - Mini Bus,EXPRESS DRIVEN,13/06/2012," 2,530.00 "
Environment & Leisure Services,Highways & Transport,ETAE,Transport-Related Expenditure,Transport Contractors,RIVERSIDE COACHWAYS,08/06/2012, 520.00 
Environment & Leisure Services,Highways & Transport,ETAE,Transport-Related Expenditure,Transport Contractors,RIVERSIDE COACHWAYS,08/06/2012, 520.00 
Environment & Leisure Services,Highways & Transport,ETAE,Transport-Related Expenditure,Transport Contractors,ARRIVA MIDLANDS NORTH LIMITED,13/06/2012," 2,684.00 "
Environment & Leisure Services,Highways & Transport,ETAE,Transport-Related Expenditure,Transport Contractors,M H ELCOCK & SON LTD T/A ELCOCK REISEN,21/06/2012," 5,830.00 "
Environment & Leisure Services,Highways & Transport,ETAE,Transport-Related Expenditure,Transport Contractors,M H ELCOCK & SON LTD T/A ELCOCK REISEN,21/06/2012," 4,620.00 "
Environment & Leisure Services,Highways & Transport,ETAE,Transport-Related Expenditure,Transport Contractors,M H ELCOCK & SON LTD T/A ELCOCK REISEN,21/06/2012," 4,510.00 "
Environment & Leisure Services,Highways & Transport,ETAE,Transport-Related Expenditure,Transport Contractors,ARRIVA MIDLANDS NORTH LIMITED,13/06/2012," 2,299.00 "
Environment & Leisure Services,Highways & Transport,ETAE,Transport-Related Expenditure,Transport Contractors,AT BROWN (COACHES) LTD,22/06/2012, 655.40 
Environment & Leisure Services,Highways & Transport,ETAE,Transport-Related Expenditure,Transport Contractors,AT BROWN (COACHES) LTD,22/06/2012, 702.80 
Environment & Leisure Services,Highways & Transport,ETAE,Transport-Related Expenditure,Transport Contractors,AT BROWN (COACHES) LTD,22/06/2012, 608.50 
Environment & Leisure Services,Highways & Transport,ETAE,Transport-Related Expenditure,Transport Contractors,AT BROWN (COACHES) LTD,22/06/2012, 705.50 
Environment & Leisure Services,Highways & Transport,ETAE,Transport-Related Expenditure,Transport Contractors,AT BROWN (COACHES) LTD,22/06/2012, 826.00 
Environment & Leisure Services,Highways & Transport,ETAE,Transport-Related Expenditure,Transport Contractors,AT BROWN (COACHES) LTD,22/06/2012, 505.00 
Environment & Leisure Services,Highways & Transport,ETAE,Transport-Related Expenditure,Transport Contractors,M & B MINIBUSES LTD,22/06/2012," 3,454.00 "
Environment & Leisure Services,Highways & Transport,ETAF,Transport-Related Expenditure,Transport Contractors,M H ELCOCK & SON LTD T/A ELCOCK REISEN,13/06/2012," 4,346.52 "
Environment & Leisure Services,Highways & Transport,ETAF,Transport-Related Expenditure,Transport Contractors,ARRIVA MIDLANDS NORTH LIMITED,13/06/2012," 5,922.48 "
Environment & Leisure Services,Highways & Transport,ETAF,Transport-Related Expenditure,Transport Contractors,ARRIVA MIDLANDS NORTH LIMITED,13/06/2012," 4,973.30 "
Environment & Leisure Services,Highways & Transport,ETAF,Transport-Related Expenditure,Transport Contractors,ARRIVA MIDLANDS NORTH LIMITED,13/06/2012," 5,901.58 "
Environment & Leisure Services,Highways & Transport,ETAF,Transport-Related Expenditure,Transport Contractors,SHROPSHIRE COUNCIL,29/06/2012," 35,822.22 "
Environment & Leisure Services,Highways & Transport,ETAF,Transport-Related Expenditure,Transport Contractors,M H ELCOCK & SON LTD T/A ELCOCK REISEN,13/06/2012," 5,443.24 "
Environment & Leisure Services,Highways & Transport,ETAH,Transport-Related Expenditure,Outside Hire,SHELL UK LTD,20/06/2012," 12,125.81 "
Environment & Leisure Services,Highways & Transport,ETAL,Transport-Related Expenditure,Contract Hire,ARRIVA MIDLANDS NORTH LIMITED,29/06/2012," 2,960.00 "
Environment & Leisure Services,Highways & Transport,ETAL,Transport-Related Expenditure,Contract Hire,ARRIVA MIDLANDS NORTH LIMITED,29/06/2012," 3,042.00 "
Environment & Leisure Services,Highways & Transport,ETAL,Supplies & Services,Grants To Voluntary Organis,SHROPSHIRE COUNCIL,20/06/2012," 14,000.00 "
Environment & Leisure Services,Leisure Facilities & Services,LEAP,Supplies & Services,Research Surveys,VALUATION OFFICE AGENCY ADMINISTRATION,20/06/2012," 1,310.00 "
Environment & Leisure Services,Leisure Facilities & Services,GTAB,Premises-Related Expenditure,Electricity,West Mercia Energy (WME),15/06/2012," 1,427.25 "
Environment & Leisure Services,Leisure Facilities & Services,GTAB,Transport-Related Expenditure,Fuel,WD PUGH & SONS,19/06/2012, 843.28 
Environment & Leisure Services,Leisure Facilities & Services,GTAB,Supplies & Services,Equipment - Purchase,TIKI INTERNATIONAL LTD,19/06/2012, 623.00 
Environment & Leisure Services,Leisure Facilities & Services,GTAB,Supplies & Services,Equipment - Purchase,THE OUTDOORS COMPANY,26/06/2012, 844.40 
Environment & Leisure Services,Leisure Facilities & Services,GTAB,Supplies & Services,Equipment - Purchase,Aiguille Alpine Equipment,26/06/2012," 2,412.90 "
Environment & Leisure Services,Leisure Facilities & Services,GTAB,Supplies & Services,Equipment - Hire,Fieldmaster Limited,15/06/2012, 500.16 
Environment & Leisure Services,Leisure Facilities & Services,GTAB,Supplies & Services,Provisions,BSF TRADING AS 3663,12/06/2012, 577.76 
Environment & Leisure Services,Leisure Facilities & Services,GTAB,Supplies & Services,Provisions,BSF TRADING AS 3663,12/06/2012, 536.90 
Environment & Leisure Services,Leisure Facilities & Services,GTAB,Supplies & Services,Provisions,WOODWARD FOODSERVICE LTD,12/06/2012, 542.62 
Environment & Leisure Services,Leisure Facilities & Services,GTAB,Supplies & Services,Provisions,WOODWARD FOODSERVICE LTD,12/06/2012, 610.86 
Environment & Leisure Services,Leisure Facilities & Services,GTAB,Supplies & Services,Instructors Fees,CHRIS HUGHES MULTI ACTIVITY SERVICES LTD,12/06/2012, 660.00 
Environment & Leisure Services,Leisure Facilities & Services,LEAD,Premises-Related Expenditure,Swimming Pool Chemicals,BRENNTAG UK LIMITED,12/06/2012, 610.00 
Environment & Leisure Services,Leisure Facilities & Services,LECA,Premises-Related Expenditure,Electricity,MIDLANDS WOOD FUEL SUPPLY LTD,19/06/2012," 4,828.54 "
Environment & Leisure Services,Leisure Facilities & Services,LECA,Premises-Related Expenditure,Electricity,West Mercia Energy (WME),26/06/2012," 4,411.66 "
Environment & Leisure Services,Leisure Facilities & Services,LECA,Premises-Related Expenditure,Electricity,West Mercia Energy (WME),26/06/2012," 4,288.92 "
Environment & Leisure Services,Leisure Facilities & Services,LECE,Employees,Staff Training,INSTITUTE OF SWIMMING,26/06/2012," 1,920.00 "
Environment & Leisure Services,Leisure Facilities & Services,LEDB,Supplies & Services,Advertising,THE MIDLAND NEWS ASSOCIATION LTD,01/06/2012, 594.00 
Environment & Leisure Services,Leisure Facilities & Services,LEDB,Supplies & Services,Promotion Expenses,CBS OUTDOOR LIMITED,01/06/2012," 3,304.00 "
Environment & Leisure Services,Leisure Facilities & Services,LEHG,Premises-Related Expenditure,Electricity,West Mercia Energy (WME),01/06/2012," 1,402.58 "
Environment & Leisure Services,Leisure Facilities & Services,LEHG,Premises-Related Expenditure,Electricity,West Mercia Energy (WME),22/06/2012," 1,255.20 "
Environment & Leisure Services,Leisure Facilities & Services,LEHG,Supplies & Services,Equipment - Hire,OAKLEYS LTD,20/06/2012, 525.75 
Environment & Leisure Services,Leisure Facilities & Services,LEHM,Transport-Related Expenditure,Fuel,TOTAL BUTLER,25/06/2012," 1,008.00 "
Environment & Leisure Services,Leisure Facilities & Services,LEIR,Premises-Related Expenditure,Water Rates,SEVERN TRENT WATER LTD,11/06/2012," 1,989.78 "
Environment & Leisure Services,Leisure Facilities & Services,LEWP,Premises-Related Expenditure,Electricity,West Mercia Energy (WME),11/06/2012, 506.32 
Environment & Leisure Services,Leisure Facilities & Services,LEWP,Premises-Related Expenditure,Electricity,West Mercia Energy (WME),11/06/2012," 1,536.99 "
Environment & Leisure Services,Leisure Facilities & Services,LEWP,Premises-Related Expenditure,Swimming Pool Chemicals,HEATSAVER LTD,28/06/2012, 735.50 
Family & Cohesion Services,Early Years Childcare,GEAA,Third Party Payments,Voluntary Bodies,DAISY CHAIN DAY CARE LTD,25/06/2012," 4,001.25 "
Family & Cohesion Services,Early Years Childcare,GEAA,Third Party Payments,Voluntary Bodies,NOAH'S ARK NURS & AFTER SCH CLUB,25/06/2012," 1,164.00 "
Family & Cohesion Services,Early Years Childcare,GEAA,Third Party Payments,Voluntary Bodies,CHIPMUNKS NURSERY,25/06/2012," 7,857.00 "
Family & Cohesion Services,Early Years Childcare,GEAA,Third Party Payments,Voluntary Bodies,CHIPMUNKS NURSERY,25/06/2012," 16,129.26 "
Family & Cohesion Services,Early Years Childcare,GEAA,Third Party Payments,Voluntary Bodies,CHIPMUNKS NURSERY,25/06/2012," 16,065.00 "
Family & Cohesion Services,Early Years Childcare,GEAA,Third Party Payments,Voluntary Bodies,CHIPMUNKS NURSERY,25/06/2012," 3,382.56 "
Family & Cohesion Services,Early Years Childcare,GEAA,Third Party Payments,Voluntary Bodies,CHIPMUNKS NURSERY,25/06/2012," 2,008.80 "
Family & Cohesion Services,Early Years Childcare,GEAA,Third Party Payments,Voluntary Bodies,ABC DAY NURSERY LTD,25/06/2012," 4,892.44 "
Family & Cohesion Services,Early Years Childcare,GEAA,Third Party Payments,Voluntary Bodies,ABC DAY NURSERY LTD,25/06/2012," 9,494.28 "
Family & Cohesion Services,Early Years Childcare,GEAA,Third Party Payments,Voluntary Bodies,ABC DAY NURSERY LTD,25/06/2012," 7,009.20 "
Family & Cohesion Services,Early Years Childcare,GEAA,Third Party Payments,Voluntary Bodies,ABC DAY NURSERY LTD,25/06/2012," 1,667.52 "
Family & Cohesion Services,Early Years Childcare,GEAA,Third Party Payments,Voluntary Bodies,ABC DAY NURSERY LTD,25/06/2012," 1,101.60 "
Family & Cohesion Services,Early Years Childcare,GEAA,Third Party Payments,Voluntary Bodies,ABC DAY NURSERY HOLLINSWOOD,25/06/2012," 5,474.44 "
Family & Cohesion Services,Early Years Childcare,GEAA,Third Party Payments,Voluntary Bodies,ABC DAY NURSERY HOLLINSWOOD,25/06/2012," 9,585.00 "
Family & Cohesion Services,Early Years Childcare,GEAA,Third Party Payments,Voluntary Bodies,ABC DAY NURSERY HOLLINSWOOD,25/06/2012," 3,195.00 "
Family & Cohesion Services,Early Years Childcare,GEAA,Third Party Payments,Voluntary Bodies,ABC DAY NURSERY HOLLINSWOOD,25/06/2012," 1,425.60 "
Family & Cohesion Services,Early Years Childcare,GEAA,Third Party Payments,Voluntary Bodies,ABC DAY NURSERY HOLLINSWOOD,25/06/2012, 518.40 
Family & Cohesion Services,Early Years Childcare,GEAA,Third Party Payments,Voluntary Bodies,TRENCH TOTS NEIGHBOURHOOD NURSERY LTD,25/06/2012," 1,164.00 "
Family & Cohesion Services,Early Years Childcare,GEAA,Third Party Payments,Voluntary Bodies,WOODEN TOPS DAY NURSERY,25/06/2012," 12,850.07 "
Family & Cohesion Services,Early Years Childcare,GEAA,Third Party Payments,Voluntary Bodies,ABACUS (DAWLEY) LTD,25/06/2012," 3,892.13 "
Family & Cohesion Services,Early Years Childcare,GEAA,Third Party Payments,Voluntary Bodies,ABACUS (DAWLEY) LTD,25/06/2012," 6,652.80 "
Family & Cohesion Services,Early Years Childcare,GEAA,Third Party Payments,Voluntary Bodies,ABACUS (DAWLEY) LTD,25/06/2012," 6,969.60 "
Family & Cohesion Services,Early Years Childcare,GEAA,Third Party Payments,Voluntary Bodies,ABACUS (DAWLEY) LTD,25/06/2012," 1,360.80 "
Family & Cohesion Services,Early Years Childcare,GEAA,Third Party Payments,Voluntary Bodies,ABACUS (DAWLEY) LTD,25/06/2012, 972.00 
Family & Cohesion Services,Early Years Childcare,GEAA,Third Party Payments,Voluntary Bodies,BUTTERFLIES DAY NURSERY,25/06/2012, 582.00 
Family & Cohesion Services,Early Years Childcare,GEAA,Third Party Payments,Voluntary Bodies,BUTTERFLIES DAY NURSERY,25/06/2012," 5,630.40 "
Family & Cohesion Services,Early Years Childcare,GEAA,Third Party Payments,Voluntary Bodies,BUTTERFLIES DAY NURSERY,25/06/2012," 6,913.80 "
Family & Cohesion Services,Early Years Childcare,GEAA,Third Party Payments,Voluntary Bodies,BUTTERFLIES DAY NURSERY,25/06/2012," 1,296.00 "
Family & Cohesion Services,Early Years Childcare,GEAA,Third Party Payments,Voluntary Bodies,BUTTERFLIES DAY NURSERY,25/06/2012," 1,036.80 "
Family & Cohesion Services,Early Years Childcare,GEAA,Third Party Payments,Voluntary Bodies,ABACUSDAY NURSERY,25/06/2012, 582.00 
Family & Cohesion Services,Early Years Childcare,GEAA,Third Party Payments,Voluntary Bodies,ABACUSDAY NURSERY,25/06/2012, 631.80 
Family & Cohesion Services,Early Years Childcare,GEAA,Third Party Payments,Voluntary Bodies,ABACUSDAY NURSERY,25/06/2012," 1,895.40 "
Family & Cohesion Services,Early Years Childcare,GEAA,Third Party Payments,Voluntary Bodies,RANDLAY ROUNDABOUTS PRE-SCHOOL,25/06/2012," 1,164.00 "
Family & Cohesion Services,Early Years Childcare,GEAA,Third Party Payments,Voluntary Bodies,OUR WORLD NEIGHBOURHOOD NURSERY,25/06/2012, 582.00 
Family & Cohesion Services,Early Years Childcare,GEAA,Third Party Payments,Voluntary Bodies,CHILDCARE SOS,25/06/2012," 5,128.88 "
Family & Cohesion Services,Early Years Childcare,GEAA,Third Party Payments,Voluntary Bodies,LITTLE CHICKS PRE-SCHOOL,25/06/2012," 1,164.00 "
Family & Cohesion Services,Early Years Childcare,GEAA,Third Party Payments,Voluntary Bodies,SMILEY FACES DAY NURSERIES LTD,25/06/2012, 582.00 
Family & Cohesion Services,Early Years Childcare,GEAA,Third Party Payments,Voluntary Bodies,TEAGUES BRIDGE PRE-SCHOOL,25/06/2012," 1,091.25 "
Family & Cohesion Services,Early Years Childcare,GEAA,Third Party Payments,Voluntary Bodies,EARLYWORLD LIMITED,25/06/2012, 582.00 
Family & Cohesion Services,Early Years Childcare,GEAA,Third Party Payments,Voluntary Bodies,BROOKSIDE PRE-SCHOOL & PLAYGROUP,25/06/2012," 1,746.00 "
Family & Cohesion Services,Early Years Childcare,GEAA,Third Party Payments,Voluntary Bodies,LITTLE DRAGONS PRE-SCHOOL,25/06/2012," 2,146.13 "
Family & Cohesion Services,Early Years Childcare,GEAA,Third Party Payments,Voluntary Bodies,STEPPING STONES AT CAPTAIN WEBB,25/06/2012," 1,746.00 "
Family & Cohesion Services,Early Years Childcare,GEAA,Third Party Payments,Voluntary Bodies,LONGFORD PLAYGROUP,25/06/2012, 582.00 
Family & Cohesion Services,Early Years Childcare,GEAA,Third Party Payments,Voluntary Bodies,HADLEY UNDER 5'S,25/06/2012," 5,471.77 "
Family & Cohesion Services,Early Years Childcare,GEAA,Third Party Payments,Voluntary Bodies,EARLYWORLD LIMITED,25/06/2012, 582.00 
Family & Cohesion Services,Early Years Childcare,GEAA,Third Party Payments,Voluntary Bodies,HONEYBUNS NURSERIES,26/06/2012," 1,527.75 "
Family & Cohesion Services,Early Years Childcare,GEAA,Third Party Payments,Voluntary Bodies,EDGMOND OWLS,25/06/2012," 1,047.60 "
Family & Cohesion Services,Early Years Childcare,GEAA,Third Party Payments,Voluntary Bodies,STRAWBERRY HILL DAY NURSERY,25/06/2012," 6,220.13 "
Family & Cohesion Services,Early Years Childcare,GEAA,Third Party Payments,Voluntary Bodies,TOTS AND TODDLERS DAYCARE,25/06/2012," 5,165.25 "
Family & Cohesion Services,Early Years Childcare,GEAC,Third Party Payments,Pre School Playgroups,B) COALBROOKDALE & I'BRIDGE NURS,25/06/2012," 3,799.08 "
Family & Cohesion Services,Early Years Childcare,GEAC,Third Party Payments,Pre School Playgroups,CHILDCARE SOS,25/06/2012, 764.64 
Family & Cohesion Services,Early Years Childcare,GEAC,Third Party Payments,Pre School Playgroups,CLUB 0-5 LTD ,25/06/2012," 2,171.52 "
Family & Cohesion Services,Early Years Childcare,GEAC,Third Party Payments,Pre School Playgroups,CLUB 0-5 LTD,25/06/2012," 5,512.32 "
Family & Cohesion Services,Early Years Childcare,GEAC,Third Party Payments,Pre School Playgroups,STRAWBERRY HILL DAY NURSERY,25/06/2012," 2,916.00 "
Family & Cohesion Services,Early Years Childcare,GEAC,Third Party Payments,Pre School Playgroups,STRAWBERRY HILL DAY NURSERY,25/06/2012," 1,036.80 "
Family & Cohesion Services,Early Years Childcare,GEAC,Third Party Payments,Pre School Playgroups,B) COALBROOKDALE & I'BRIDGE NURS,25/06/2012," 1,302.48 "
Family & Cohesion Services,Early Years Childcare,GEAC,Third Party Payments,Pre School Playgroups,BEARS DEN PRE-SCHOOL A/C,25/06/2012," 5,313.00 "
Family & Cohesion Services,Early Years Childcare,GEAC,Third Party Payments,Pre School Playgroups,BEARS DEN PRE-SCHOOL A/C,25/06/2012," 1,438.56 "
Family & Cohesion Services,Early Years Childcare,GEAC,Third Party Payments,Pre School Playgroups,BEARS DEN PRE-SCHOOL A/C,25/06/2012, 760.32 
Family & Cohesion Services,Early Years Childcare,GEAC,Third Party Payments,Pre School Playgroups,HIGH ERCALL PRE-SCHOOL,25/06/2012, 892.08 
Family & Cohesion Services,Early Years Childcare,GEAC,Third Party Payments,Pre School Playgroups,LITTLE CHICKS PRE-SCHOOL,25/06/2012," 1,620.00 "
Family & Cohesion Services,Early Years Childcare,GEAC,Third Party Payments,Pre School Playgroups,LITTLE CHICKS PRE-SCHOOL,25/06/2012, 648.00 
Family & Cohesion Services,Early Years Childcare,GEAC,Third Party Payments,Pre School Playgroups,DAISY CHAIN @ OLD HALL,25/06/2012," 11,661.60 "
Family & Cohesion Services,Early Years Childcare,GEAC,Third Party Payments,Pre School Playgroups,DAISY CHAIN @ OLD HALL,25/06/2012," 7,038.24 "
Family & Cohesion Services,Early Years Childcare,GEAC,Third Party Payments,Pre School Playgroups,DAISY CHAIN @ OLD HALL,25/06/2012," 2,242.08 "
Family & Cohesion Services,Early Years Childcare,GEAC,Third Party Payments,Pre School Playgroups,DAISY CHAIN @ OLD HALL,25/06/2012," 1,142.64 "
Family & Cohesion Services,Early Years Childcare,GEAC,Third Party Payments,Pre School Playgroups,ABACUS DAY NURSERY,25/06/2012," 1,873.80 "
Family & Cohesion Services,Early Years Childcare,GEAC,Third Party Payments,Pre School Playgroups,ABACUS DAY NURSERY,25/06/2012," 2,186.10 "
Family & Cohesion Services,Early Years Childcare,GEAC,Third Party Payments,Pre School Playgroups,THE LEARNING TREE PRE-SCHOOL,25/06/2012," 5,444.10 "
Family & Cohesion Services,Early Years Childcare,GEAC,Third Party Payments,Pre School Playgroups,STEPPING STONES AT CAPTAIN WEBB,25/06/2012, 933.12 
Family & Cohesion Services,Early Years Childcare,GEAC,Third Party Payments,Pre School Playgroups,LONGFORD PLAYGROUP,25/06/2012," 1,494.72 "
Family & Cohesion Services,Early Years Childcare,GEAC,Third Party Payments,Pre School Playgroups,LONGFORD PLAYGROUP,25/06/2012," 4,359.60 "
Family & Cohesion Services,Early Years Childcare,GEAC,Third Party Payments,Pre School Playgroups,LONGFORD PLAYGROUP,25/06/2012, 609.12 
Family & Cohesion Services,Early Years Childcare,GEAC,Third Party Payments,Pre School Playgroups,LONGFORD PLAYGROUP,25/06/2012, 648.00 
Family & Cohesion Services,Early Years Childcare,GEAC,Third Party Payments,Pre School Playgroups,LILLESHALL PRE-SCHOOL PLAYGROUP,25/06/2012," 3,060.54 "
Family & Cohesion Services,Early Years Childcare,GEAC,Third Party Payments,Pre School Playgroups,LILLESHALL PRE-SCHOOL PLAYGROUP,25/06/2012," 7,182.90 "
Family & Cohesion Services,Early Years Childcare,GEAC,Third Party Payments,Pre School Playgroups,ABACUS DAY NURSERY,25/06/2012, 518.40 
Family & Cohesion Services,Early Years Childcare,GEAC,Third Party Payments,Pre School Playgroups,PLAY-DAYS CORPORTION LTD,25/06/2012, 949.44 
Family & Cohesion Services,Early Years Childcare,GEAC,Third Party Payments,Pre School Playgroups,PLAY-DAYS CORPORTION LTD,25/06/2012," 4,251.84 "
Family & Cohesion Services,Early Years Childcare,GEAC,Third Party Payments,Pre School Playgroups,PLAY-DAYS CORPORTION LTD,25/06/2012, 501.12 
Family & Cohesion Services,Early Years Childcare,GEAC,Third Party Payments,Pre School Playgroups,PLAY-DAYS CORPORTION LTD,25/06/2012, 635.04 
Family & Cohesion Services,Early Years Childcare,GEAC,Third Party Payments,Pre School Playgroups,PRIORSLEE PRE-SCHOOL,25/06/2012," 4,891.68 "
Family & Cohesion Services,Early Years Childcare,GEAC,Third Party Payments,Pre School Playgroups,PRIORSLEE PRE-SCHOOL,25/06/2012," 7,368.48 "
Family & Cohesion Services,Early Years Childcare,GEAC,Third Party Payments,Pre School Playgroups,PRIORSLEE PRE-SCHOOL,25/06/2012," 1,399.68 "
Family & Cohesion Services,Early Years Childcare,GEAC,Third Party Payments,Pre School Playgroups,PRIORSLEE PRE-SCHOOL,25/06/2012, 959.04 
Family & Cohesion Services,Early Years Childcare,GEAC,Third Party Payments,Pre School Playgroups,PUDDLEDUCKS PLAYGROUP,25/06/2012," 6,034.32 "
Family & Cohesion Services,Early Years Childcare,GEAC,Third Party Payments,Pre School Playgroups,PUDDLEDUCKS PLAYGROUP,25/06/2012," 7,078.32 "
Family & Cohesion Services,Early Years Childcare,GEAC,Third Party Payments,Pre School Playgroups,PUDDLEDUCKS PLAYGROUP,25/06/2012," 1,270.08 "
Family & Cohesion Services,Early Years Childcare,GEAC,Third Party Payments,Pre School Playgroups,PUDDLEDUCKS PLAYGROUP,25/06/2012," 1,101.60 "
Family & Cohesion Services,Early Years Childcare,GEAC,Third Party Payments,Pre School Playgroups,THOMAS TELFORD SCHOOL,25/06/2012," 2,498.40 "
Family & Cohesion Services,Early Years Childcare,GEAC,Third Party Payments,Pre School Playgroups,THOMAS TELFORD SCHOOL,25/06/2012," 1,873.80 "
Family & Cohesion Services,Early Years Childcare,GEAC,Third Party Payments,Pre School Playgroups,THOMAS TELFORD SCHOOL,25/06/2012, 518.40 
Family & Cohesion Services,Early Years Childcare,GEAC,Third Party Payments,Pre School Playgroups,TORTOISE NURSERY SCHOOL,25/06/2012," 5,076.36 "
Family & Cohesion Services,Early Years Childcare,GEAC,Third Party Payments,Pre School Playgroups,TORTOISE NURSERY SCHOOL,25/06/2012," 3,122.28 "
Family & Cohesion Services,Early Years Childcare,GEAC,Third Party Payments,Pre School Playgroups,TORTOISE NURSERY SCHOOL,25/06/2012, 989.28 
Family & Cohesion Services,Early Years Childcare,GEAC,Third Party Payments,Pre School Playgroups,TRENCH TOTS NEIGHBOURHOOD NURSERY LTD,25/06/2012," 9,873.60 "
Family & Cohesion Services,Early Years Childcare,GEAC,Third Party Payments,Pre School Playgroups,TRENCH TOTS NEIGHBOURHOOD NURSERY LTD,25/06/2012," 3,168.00 "
Family & Cohesion Services,Early Years Childcare,GEAC,Third Party Payments,Pre School Playgroups,TRENCH TOTS NEIGHBOURHOOD NURSERY LTD,25/06/2012," 1,609.20 "
Family & Cohesion Services,Early Years Childcare,GEAC,Third Party Payments,Pre School Playgroups,ABC DAY NURSERY,25/06/2012," 10,091.25 "
Family & Cohesion Services,Early Years Childcare,GEAC,Third Party Payments,Pre School Playgroups,ABC DAY NURSERY,25/06/2012," 4,657.50 "
Family & Cohesion Services,Early Years Childcare,GEAC,Third Party Payments,Pre School Playgroups,ABC DAY NURSERY,25/06/2012," 1,544.40 "
Family & Cohesion Services,Early Years Childcare,GEAC,Third Party Payments,Pre School Playgroups,ABC DAY NURSERY,25/06/2012, 777.60 
Family & Cohesion Services,Early Years Childcare,GEAC,Third Party Payments,Pre School Playgroups,APPLE TREES NURSERY,25/06/2012," 2,639.34 "
Family & Cohesion Services,Early Years Childcare,GEAC,Third Party Payments,Pre School Playgroups,WOODEN TOPS DAY NURSERY,25/06/2012," 6,220.80 "
Family & Cohesion Services,Early Years Childcare,GEAC,Third Party Payments,Pre School Playgroups,WOODEN TOPS DAY NURSERY,25/06/2012," 8,748.00 "
Family & Cohesion Services,Early Years Childcare,GEAC,Third Party Payments,Pre School Playgroups,WOODEN TOPS DAY NURSERY,25/06/2012," 1,645.92 "
Family & Cohesion Services,Early Years Childcare,GEAC,Third Party Payments,Pre School Playgroups,WOODEN TOPS DAY NURSERY,25/06/2012," 1,036.80 "
Family & Cohesion Services,Early Years Childcare,GEAC,Third Party Payments,Pre School Playgroups,CYGNETS PRE-SCHOOL,25/06/2012," 5,366.16 "
Family & Cohesion Services,Early Years Childcare,GEAC,Third Party Payments,Pre School Playgroups,CYGNETS PRE-SCHOOL,25/06/2012," 6,201.36 "
Family & Cohesion Services,Early Years Childcare,GEAC,Third Party Payments,Pre School Playgroups,CYGNETS PRE-SCHOOL,25/06/2012," 1,239.84 "
Family & Cohesion Services,Early Years Childcare,GEAC,Third Party Payments,Pre School Playgroups,CYGNETS PRE-SCHOOL,25/06/2012, 959.04 
Family & Cohesion Services,Early Years Childcare,GEAC,Third Party Payments,Pre School Playgroups,RANDLAY ROUNDABOUTS PRE-SCHOOL,25/06/2012," 3,058.56 "
Family & Cohesion Services,Early Years Childcare,GEAC,Third Party Payments,Pre School Playgroups,TOTS AND TODDLERS DAYCARE,25/06/2012," 1,231.20 "
Family & Cohesion Services,Early Years Childcare,GEAC,Third Party Payments,Pre School Playgroups,HONEYBUNS NURSERIES,26/06/2012," 4,328.64 "
Family & Cohesion Services,Early Years Childcare,GEAC,Third Party Payments,Pre School Playgroups,HONEYBUNS NURSERIES,26/06/2012," 3,038.04 "
Family & Cohesion Services,Early Years Childcare,GEAC,Third Party Payments,Pre School Playgroups,OUR WORLD NEIGHBOURHOOD NURSERY,25/06/2012," 5,146.74 "
Family & Cohesion Services,Early Years Childcare,GEAC,Third Party Payments,Pre School Playgroups,CHILDCARE SOS,25/06/2012," 3,632.04 "
Family & Cohesion Services,Early Years Childcare,GEAC,Third Party Payments,Pre School Playgroups,CHILDCARE SOS,25/06/2012," 2,230.20 "
Family & Cohesion Services,Early Years Childcare,GEAC,Third Party Payments,Pre School Playgroups,TOTS AND TODDLERS DAYCARE,25/06/2012," 9,279.36 "
Family & Cohesion Services,Early Years Childcare,GEAC,Third Party Payments,Pre School Playgroups,TOTS AND TODDLERS DAYCARE,25/06/2012," 2,575.80 "
Family & Cohesion Services,Early Years Childcare,GEAC,Third Party Payments,Pre School Playgroups,EARLYWORLD LIMITED,25/06/2012, 881.28 
Family & Cohesion Services,Early Years Childcare,GEAC,Third Party Payments,Pre School Playgroups,BUSY BEES AT TELFORD PARKWAY,25/06/2012," 1,127.52 "
Family & Cohesion Services,Early Years Childcare,GEAC,Third Party Payments,Pre School Playgroups,DAISY CHAIN DAY CARE LTD,25/06/2012," 8,790.48 "
Family & Cohesion Services,Early Years Childcare,GEAC,Third Party Payments,Pre School Playgroups,EDGMOND OWLS,25/06/2012," 1,818.72 "
Family & Cohesion Services,Early Years Childcare,GEAC,Third Party Payments,Pre School Playgroups,CENTRAL PARK NURSERY,25/06/2012, 738.72 
Family & Cohesion Services,Early Years Childcare,GEAC,Third Party Payments,Pre School Playgroups,EDGMOND OWLS,25/06/2012, 980.64 
Family & Cohesion Services,Early Years Childcare,GEAC,Third Party Payments,Pre School Playgroups,RANDLAY ROUNDABOUTS PRE-SCHOOL,25/06/2012," 1,593.00 "
Family & Cohesion Services,Early Years Childcare,GEAC,Third Party Payments,Pre School Playgroups,NOAH'S ARK NURS & AFTER SCH CLUB,25/06/2012," 14,500.86 "
Family & Cohesion Services,Early Years Childcare,GEAC,Third Party Payments,Pre School Playgroups,NOAH'S ARK NURS & AFTER SCH CLUB,25/06/2012," 12,331.44 "
Family & Cohesion Services,Early Years Childcare,GEAC,Third Party Payments,Pre School Playgroups,RANDLAY ROUNDABOUTS PRE-SCHOOL,25/06/2012, 518.40 
Family & Cohesion Services,Early Years Childcare,GEAC,Third Party Payments,Pre School Playgroups,LITTLE CHICKS PRE-SCHOOL,25/06/2012," 8,359.20 "
Family & Cohesion Services,Early Years Childcare,GEAC,Third Party Payments,Pre School Playgroups,LITTLE CHICKS PRE-SCHOOL,25/06/2012," 4,953.60 "
Family & Cohesion Services,Early Years Childcare,GEAC,Third Party Payments,Pre School Playgroups,B) WT'ON METHODIST CHURCH PLAYGR,25/06/2012," 4,141.80 "
Family & Cohesion Services,Early Years Childcare,GEAC,Third Party Payments,Pre School Playgroups,B) WT'ON METHODIST CHURCH PLAYGR,25/06/2012," 1,054.08 "
Family & Cohesion Services,Early Years Childcare,GEAC,Third Party Payments,Pre School Playgroups,B) WT'ON METHODIST CHURCH PLAYGR,25/06/2012," 5,055.12 "
Family & Cohesion Services,Early Years Childcare,GEAC,Third Party Payments,Pre School Playgroups,TEAGUES BRIDGE PRE-SCHOOL,25/06/2012," 3,937.50 "
Family & Cohesion Services,Early Years Childcare,GEAC,Third Party Payments,Pre School Playgroups,TEAGUES BRIDGE PRE-SCHOOL,25/06/2012," 1,620.00 "
Family & Cohesion Services,Early Years Childcare,GEAC,Third Party Payments,Pre School Playgroups,TEAGUES BRIDGE PRE-SCHOOL,25/06/2012, 664.20 
Family & Cohesion Services,Early Years Childcare,GEAC,Third Party Payments,Pre School Playgroups,TIGGYWINKLES MONTESSORI NURSERY,25/06/2012," 6,359.22 "
Family & Cohesion Services,Early Years Childcare,GEAC,Third Party Payments,Pre School Playgroups,TEAGUES BRIDGE PRE-SCHOOL,25/06/2012," 8,190.00 "
Family & Cohesion Services,Early Years Childcare,GEAC,Third Party Payments,Pre School Playgroups,DAISY CHAIN DAY CARE LTD,25/06/2012," 1,717.20 "
Family & Cohesion Services,Early Years Childcare,GEAC,Third Party Payments,Pre School Playgroups,DAISY CHAIN DAY CARE LTD,25/06/2012, 650.16 
Family & Cohesion Services,Early Years Childcare,GEAC,Third Party Payments,Pre School Playgroups,EARLYWORLD LIMITED,25/06/2012," 5,465.34 "
Family & Cohesion Services,Early Years Childcare,GEAC,Third Party Payments,Pre School Playgroups,EARLYWORLD LIMITED,25/06/2012," 5,088.42 "
Family & Cohesion Services,Early Years Childcare,GEAC,Third Party Payments,Pre School Playgroups,EARLYWORLD LIMITED,25/06/2012," 1,062.72 "
Family & Cohesion Services,Early Years Childcare,GEAC,Third Party Payments,Pre School Playgroups,LEEGOMERY UNDER 5'S PLAYGROUP,25/06/2012," 1,895.40 "
Family & Cohesion Services,Early Years Childcare,GEAC,Third Party Payments,Pre School Playgroups,THE OLD HALL SCHOOL,25/06/2012, 977.55 
Family & Cohesion Services,Early Years Childcare,GEAC,Third Party Payments,Pre School Playgroups,BROOKSIDE PRE-SCHOOL & PLAYGROUP,25/06/2012," 1,163.16 "
Family & Cohesion Services,Early Years Childcare,GEAC,Third Party Payments,Pre School Playgroups,BROOKSIDE PRE-SCHOOL & PLAYGROUP,25/06/2012," 3,554.10 "
Family & Cohesion Services,Early Years Childcare,GEAC,Third Party Payments,Pre School Playgroups,BUSY BEES AT TELFORD PARKWAY,25/06/2012," 4,781.70 "
Family & Cohesion Services,Early Years Childcare,GEAC,Third Party Payments,Pre School Playgroups,CLUB 0-5 LTD,25/06/2012, 894.24 
Family & Cohesion Services,Early Years Childcare,GEAC,Third Party Payments,Pre School Playgroups,B) COALBROOKDALE & I'BRIDGE NURS,25/06/2012," 6,726.24 "
Family & Cohesion Services,Early Years Childcare,GEAC,Third Party Payments,Pre School Playgroups,CENTRAL PARK NURSERY,25/06/2012," 9,737.10 "
Family & Cohesion Services,Early Years Childcare,GEAC,Third Party Payments,Pre School Playgroups,CASTLE HOUSE SCHOOL TRUST LTD,25/06/2012," 6,729.66 "
Family & Cohesion Services,Early Years Childcare,GEAC,Third Party Payments,Pre School Playgroups,CASTLE HOUSE SCHOOL TRUST LTD,25/06/2012," 4,887.75 "
Family & Cohesion Services,Early Years Childcare,GEAC,Third Party Payments,Pre School Playgroups,CASTLE HOUSE SCHOOL TRUST LTD,25/06/2012," 1,080.00 "
Family & Cohesion Services,Early Years Childcare,GEAC,Third Party Payments,Pre School Playgroups,CLUB 0-5 LTD ,25/06/2012, 695.52 
Family & Cohesion Services,Early Years Childcare,GEAC,Third Party Payments,Pre School Playgroups,BUSY BEES AT TELFORD PARKWAY,25/06/2012," 4,595.40 "
Family & Cohesion Services,Early Years Childcare,GEAC,Third Party Payments,Pre School Playgroups,CASTLE HOUSE SCHOOL TRUST LTD,25/06/2012, 972.00 
Family & Cohesion Services,Early Years Childcare,GEAC,Third Party Payments,Pre School Playgroups,HALESFIELD DAY NURSERY CENTRE,25/06/2012," 1,311.12 "
Family & Cohesion Services,Early Years Childcare,GEAC,Third Party Payments,Pre School Playgroups,HALESFIELD DAY NURSERY CENTRE,25/06/2012, 650.16 
Family & Cohesion Services,Early Years Childcare,GEAC,Third Party Payments,Pre School Playgroups,HIGH ERCALL PRE-SCHOOL,25/06/2012," 5,118.72 "
Family & Cohesion Services,Early Years Childcare,GEAC,Third Party Payments,Pre School Playgroups,SMILEY FACES DAY NURSERIES LTD,25/06/2012," 1,360.80 "
Family & Cohesion Services,Early Years Childcare,GEAC,Third Party Payments,Pre School Playgroups,SMILEY FACES DAY NURSERIES LTD,25/06/2012, 777.60 
Family & Cohesion Services,Early Years Childcare,GEAC,Third Party Payments,Pre School Playgroups,KIDS 4 US,25/06/2012," 4,934.94 "
Family & Cohesion Services,Early Years Childcare,GEAC,Third Party Payments,Pre School Playgroups,KIDS 4 US,25/06/2012," 3,367.62 "
Family & Cohesion Services,Early Years Childcare,GEAC,Third Party Payments,Pre School Playgroups,KIDS 4 US,25/06/2012, 868.32 
Family & Cohesion Services,Early Years Childcare,GEAC,Third Party Payments,Pre School Playgroups,KIDS 4 US,25/06/2012, 518.40 
Family & Cohesion Services,Early Years Childcare,GEAC,Third Party Payments,Pre School Playgroups,LITTLE DRAGONS PRE-SCHOOL,25/06/2012," 10,710.00 "
Family & Cohesion Services,Early Years Childcare,GEAC,Third Party Payments,Pre School Playgroups,LITTLE DRAGONS PRE-SCHOOL,25/06/2012, 630.00 
Family & Cohesion Services,Early Years Childcare,GEAC,Third Party Payments,Pre School Playgroups,LITTLE DRAGONS PRE-SCHOOL,25/06/2012," 1,620.00 "
Family & Cohesion Services,Early Years Childcare,GEAC,Third Party Payments,Pre School Playgroups,HALESFIELD DAY NURSERY CENTRE,25/06/2012," 5,754.00 "
Family & Cohesion Services,Early Years Childcare,GEAC,Third Party Payments,Pre School Playgroups,HALESFIELD DAY NURSERY CENTRE,25/06/2012," 4,053.00 "
Family & Cohesion Services,Early Years Childcare,GEAC,Third Party Payments,Pre School Playgroups,Busy Bees Day Nursery Telford,25/06/2012," 13,289.40 "
Family & Cohesion Services,Early Years Childcare,GEAC,Third Party Payments,Pre School Playgroups,EDGMOND OWLS,25/06/2012," 6,730.56 "
Family & Cohesion Services,Early Years Childcare,GEAC,Third Party Payments,Pre School Playgroups,LADYGROVE NURSERY,25/06/2012," 3,790.80 "
Family & Cohesion Services,Early Years Childcare,GEAC,Third Party Payments,Pre School Playgroups,LADYGROVE NURSERY,25/06/2012," 1,263.60 "
Family & Cohesion Services,Early Years Childcare,GEAC,Third Party Payments,Pre School Playgroups,LADYGROVE NURSERY,25/06/2012, 907.20 
Family & Cohesion Services,Early Years Childcare,GEAC,Third Party Payments,Pre School Playgroups,OAKENGATES UNITED PRE-SCHOOL,25/06/2012," 1,228.50 "
Family & Cohesion Services,Early Years Childcare,GEAC,Third Party Payments,Pre School Playgroups,OAKENGATES UNITED PRE-SCHOOL,25/06/2012, 598.50 
Family & Cohesion Services,Early Years Childcare,GEAC,Third Party Payments,Pre School Playgroups,B) WT'ON METHODIST CHURCH PLAYGR,25/06/2012, 518.40 
Family & Cohesion Services,Early Years Childcare,GEAC,Third Party Payments,Pre School Playgroups,REDHILL NURSERY,25/06/2012," 1,674.00 "
Family & Cohesion Services,Early Years Childcare,GEAC,Third Party Payments,Pre School Playgroups,REDHILL NURSERY,25/06/2012," 1,270.08 "
Family & Cohesion Services,Early Years Childcare,GEAC,Third Party Payments,Pre School Playgroups,NOAH'S ARK NURS & AFTER SCH CLUB,25/06/2012," 2,784.24 "
Family & Cohesion Services,Early Years Childcare,GEAC,Third Party Payments,Pre School Playgroups,NOAH'S ARK NURS & AFTER SCH CLUB,25/06/2012," 2,047.68 "
Family & Cohesion Services,Early Years Childcare,GEAC,Third Party Payments,Pre School Playgroups,THE LEARNING TREE PRE-SCHOOL,25/06/2012," 2,634.08 "
Family & Cohesion Services,Early Years Childcare,GEAC,Third Party Payments,Pre School Playgroups,STEPPING STONES AT CAPTAIN WEBB,25/06/2012," 4,815.36 "
Family & Cohesion Services,Early Years Childcare,GEAC,Third Party Payments,Pre School Playgroups,STEPPING STONES AT CAPTAIN WEBB,25/06/2012," 7,096.32 "
Family & Cohesion Services,Early Years Childcare,GEAC,Third Party Payments,Pre School Playgroups,STEPPING STONES AT CAPTAIN WEBB,25/06/2012," 1,179.36 "
Family & Cohesion Services,Early Years Childcare,GEAC,Third Party Payments,Pre School Playgroups,THE LEARNING TREE PRE-SCHOOL ,25/06/2012, 712.80 
Family & Cohesion Services,Early Years Childcare,GEAC,Third Party Payments,Pre School Playgroups,THE LEARNING TREE PRE-SCHOOL,25/06/2012, 937.44 
Family & Cohesion Services,Early Years Childcare,GEAC,Third Party Payments,Pre School Playgroups,TIBBERTON PLAYGROUP,25/06/2012," 2,995.92 "
Family & Cohesion Services,Early Years Childcare,GEAC,Third Party Payments,Pre School Playgroups,TIBBERTON PLAYGROUP,25/06/2012, 923.40 
Family & Cohesion Services,Early Years Childcare,GEAC,Third Party Payments,Pre School Playgroups,TIBBERTON PLAYGROUP,25/06/2012, 501.12 
Family & Cohesion Services,Early Years Childcare,GEAC,Third Party Payments,Pre School Playgroups,LILLESHALL PRE-SCHOOL PLAYGROUP,25/06/2012, 984.96 
Family & Cohesion Services,Early Years Childcare,GEAC,Third Party Payments,Pre School Playgroups,LITTLE BODIES DAY NURSERY,25/06/2012, 622.80 
Family & Cohesion Services,Early Years Childcare,GEAC,Third Party Payments,Pre School Playgroups,REDHILL NURSERY,25/06/2012," 7,594.02 "
Family & Cohesion Services,Early Years Childcare,GEAC,Third Party Payments,Pre School Playgroups,HADLEY UNDER 5'S,25/06/2012," 14,550.66 "
Family & Cohesion Services,Early Years Childcare,GEAC,Third Party Payments,Pre School Playgroups,HADLEY UNDER 5'S,25/06/2012," 7,455.36 "
Family & Cohesion Services,Early Years Childcare,GEAC,Third Party Payments,Pre School Playgroups,HADLEY UNDER 5'S,25/06/2012," 2,531.52 "
Family & Cohesion Services,Early Years Childcare,GEAC,Third Party Payments,Pre School Playgroups,HADLEY UNDER 5'S,25/06/2012," 1,200.96 "
Family & Cohesion Services,Early Years Childcare,GEAC,Third Party Payments,Pre School Playgroups,EARLYWORLD LIMITED,25/06/2012," 9,092.88 "
Family & Cohesion Services,Early Years Childcare,GEAC,Third Party Payments,Pre School Playgroups,EARLYWORLD LIMITED,25/06/2012," 10,151.64 "
Family & Cohesion Services,Early Years Childcare,GEAC,Third Party Payments,Pre School Playgroups,EARLYWORLD LIMITED,25/06/2012," 2,008.80 "
Family & Cohesion Services,Early Years Childcare,GEAC,Third Party Payments,Pre School Playgroups,EARLYWORLD LIMITED,25/06/2012," 1,425.60 "
Family & Cohesion Services,Early Years Childcare,GEAC,Third Party Payments,Pre School Playgroups,TIGGYWINKLES MONTESSORI NURSERY,25/06/2012," 3,704.40 "
Family & Cohesion Services,Early Years Childcare,GEAC,Third Party Payments,Pre School Playgroups,TIGGYWINKLES MONTESSORI NURSERY,25/06/2012," 1,023.84 "
Family & Cohesion Services,Early Years Childcare,GEAC,Third Party Payments,Pre School Playgroups,B) COALBROOKDALE & I'BRIDGE NURS,25/06/2012, 615.60 
Family & Cohesion Services,Early Years Childcare,GEAC,Third Party Payments,Pre School Playgroups,HONEYBUNS NURSERIES,26/06/2012," 22,399.02 "
Family & Cohesion Services,Early Years Childcare,GEAC,Third Party Payments,Pre School Playgroups,HONEYBUNS NURSERIES,26/06/2012," 21,934.44 "
Family & Cohesion Services,Early Years Childcare,GEAC,Third Party Payments,Pre School Playgroups,CENTRAL PARK NURSERY,25/06/2012," 5,151.24 "
Family & Cohesion Services,Early Years Childcare,GEAC,Third Party Payments,Pre School Playgroups,CENTRAL PARK NURSERY,25/06/2012," 2,008.80 "
Family & Cohesion Services,Early Years Childcare,GEAC,Third Party Payments,Pre School Playgroups,OUR WORLD NEIGHBOURHOOD NURSERY,25/06/2012," 2,350.98 "
Family & Cohesion Services,Early Years Childcare,GEAC,Third Party Payments,Pre School Playgroups,OUR WORLD NEIGHBOURHOOD NURSERY,25/06/2012, 933.12 
Family & Cohesion Services,Early Years Childcare,GEAC,Third Party Payments,Pre School Playgroups,EDGMOND OWLS,25/06/2012," 11,224.44 "
Family & Cohesion Services,Early Years Childcare,GEAC,Third Party Payments,Pre School Playgroups,LEEGOMERY UNDER 5'S PLAYGROUP,25/06/2012, 907.20 
Family & Cohesion Services,Early Years Childcare,GEAC,Third Party Payments,Pre School Playgroups,REDHILL NURSERY,25/06/2012," 8,098.23 "
Family & Cohesion Services,Early Years Childcare,GEAC,Third Party Payments,Pre School Playgroups,Busy Bees Day Nursery Telford,25/06/2012," 8,694.00 "
Family & Cohesion Services,Early Years Childcare,GEAC,Third Party Payments,Pre School Playgroups,BUSY BEES AT TELFORD PARKWAY,25/06/2012, 648.00 
Family & Cohesion Services,Early Years Childcare,GEAC,Third Party Payments,Pre School Playgroups,LEEGOMERY UNDER 5'S PLAYGROUP,25/06/2012," 5,370.30 "
Family & Cohesion Services,Early Years Childcare,GEAC,Third Party Payments,Pre School Playgroups,LITTLE BODIES DAY NURSERY,25/06/2012," 3,114.00 "
Family & Cohesion Services,Early Years Childcare,GEAC,Third Party Payments,Pre School Playgroups,LILLESHALL PRE-SCHOOL PLAYGROUP,25/06/2012, 946.08 
Family & Cohesion Services,Early Years Childcare,GEAC,Third Party Payments,Pre School Playgroups,HIGH ERCALL PRE-SCHOOL,25/06/2012, 980.40 
Family & Cohesion Services,Early Years Childcare,GEAC,Third Party Payments,Pre School Playgroups,TIGGYWINKLES MONTESSORI NURSERY,25/06/2012, 712.80 
Family & Cohesion Services,Early Years Childcare,GEAC,Third Party Payments,Pre School Playgroups,STRAWBERRY HILL DAY NURSERY,25/06/2012," 6,804.00 "
Family & Cohesion Services,Early Years Childcare,GEAC,Third Party Payments,Pre School Playgroups,DAISY CHAIN DAY CARE LTD,25/06/2012," 5,658.48 "
Family & Cohesion Services,Early Years Childcare,GEAC,Third Party Payments,Pre School Playgroups,Busy Bees Day Nursery Telford,25/06/2012," 2,630.88 "
Family & Cohesion Services,Early Years Childcare,GEAC,Third Party Payments,Pre School Playgroups,Busy Bees Day Nursery Telford,25/06/2012," 1,373.76 "
Family & Cohesion Services,Early Years Childcare,GEAC,Third Party Payments,Pre School Playgroups,SMILEY FACES DAY NURSERIES LTD,25/06/2012," 8,260.20 "
Family & Cohesion Services,Early Years Childcare,GEAC,Third Party Payments,Pre School Playgroups,SMILEY FACES DAY NURSERIES LTD,25/06/2012," 5,718.60 "
Family & Cohesion Services,Early Years Childcare,GEAC,Third Party Payments,Pre School Playgroups,BEARS DEN PRE-SCHOOL A/C,25/06/2012," 6,867.00 "
Family & Cohesion Services,Early Years Childcare,GEAC,Third Party Payments,Pre School Playgroups,TOTS AND TODDLERS DAYCARE,25/06/2012," 12,807.45 "
Family & Cohesion Services,Early Years Childcare,GEAD,Supplies & Services,Other Services,SUTTON HILL FAMILIES PROJECT,22/06/2012," 2,410.00 "
Family & Cohesion Services,Early Years Childcare,HCAE,Supplies & Services,Other Grants (Expenses),TELFORD & WREKIN C V S,01/06/2012," 24,250.00 "
Family & Cohesion Services,Early Years Childcare,JEAE,Employees,Training Expenses,CFBT EDUCATION TRUST,25/06/2012, 726.05 
Family & Cohesion Services,Integrated Disabilities,HDAK,Income,Fees & Charges General,OVERLEY HALL SCHOOL,15/06/2012," 6,166.32 "
Family & Cohesion Services,Integrated Disabilities,HDAK,Income,Fees & Charges General,NEW OPTIONS (3) LTD,26/06/2012," 1,109.29 "
Family & Cohesion Services,Integrated Disabilities,JSAA,Employees,Agency Supply Costs,OUTCOMES UK LTD,20/06/2012," 1,134.00 "
Family & Cohesion Services,Integrated Disabilities,JSAA,Employees,Agency Supply Costs,OUTCOMES UK LTD,15/06/2012, 926.10 
Family & Cohesion Services,Integrated Disabilities,JSAA,Employees,Agency Supply Costs,OUTCOMES UK LTD,15/06/2012," 1,134.00 "
Family & Cohesion Services,Integrated Disabilities,KNAA,Third Party Payments,Agency Services,CASTLECARE EDUCATION LTD,16/06/2012," 78,490.94 "
Family & Cohesion Services,Integrated Disabilities,KNAA,Third Party Payments,Agency Services,CRUCKTON HALL SCHOOL,15/06/2012," 9,000.00 "
Family & Cohesion Services,Integrated Disabilities,KNAJ,Supplies & Services,Aids & Appliances,OTICON LIMITED,22/06/2012, 680.00 
"Finance, Audit & Information Governance",Audit & Assurance,BAAA,Supplies & Services,Contract Payments to IT Audit Specialist ,DELOITTE & TOUCHE PUBLIC SECTOR INT AUD,06/06/2012," 4,250.00 "
"Finance, Audit & Information Governance",Audit & Assurance,BAAA,Supplies & Services,Contract Payments to IT Audit Specialist ,DELOITTE & TOUCHE PUBLIC SECTOR INT AUD,21/06/2012," 4,370.00 "
"Finance, Audit & Information Governance",Employment Services,FEAC,Employees,Recruitment Interview,CRIMINAL RECORDS BUREAU,12/06/2012," 7,426.00 "
"Finance, Audit & Information Governance",Finance,FHAB,Supplies & Services,Other Services,ALLPAY.NET LIMITED,14/06/2012, 943.31 
"Finance, Audit & Information Governance",Finance,FHAB,Supplies & Services,Other Services,ALLPAY.NET LIMITED,14/06/2012," 2,635.28 "
"Finance, Audit & Information Governance",Finance Manager (Capital & Infrastructure based Services),YFBG,Supplies & Services,Advertising,SIGNS EXPRESS (TELFORD),19/06/2012," 4,257.00 "
"Finance, Audit & Information Governance",Finance Manager (Corporate Finance & Customer Services),FFAC,Supplies & Services,Consultants Fees,UNIT4 BUSINESS SOFTWARE LTD,11/06/2012," 8,260.00 "
"Finance, Audit & Information Governance",Finance Manager (Corporate Finance & Customer Services),FHAQ,Capital Financing Costs,Penalty Deductions,THE INFORMATION COMMISSIONER,14/06/2012," 72,000.00 "
"Finance, Audit & Information Governance",Finance Manager (Corporate Finance & Customer Services),MAAC,Employees,Agency Supply Costs,COMENSURA LTD,21/06/2012," 17,452.32 "
"Finance, Audit & Information Governance",Finance Manager (Corporate Finance & Customer Services),MAAC,Employees,Agency Supply Costs,COMENSURA LTD,12/06/2012," 27,656.48 "
"Finance, Audit & Information Governance",Finance Manager (Corporate Finance & Customer Services),MAAC,Employees,Agency Supply Costs,COMENSURA LTD,25/06/2012," 29,956.67 "
"Law, Democracy & Public Protection",Democratic Services,BDAE,Supplies & Services,Equipment - Purchase,SPECIALIST COMPUTERS CENTRES PLC,08/06/2012," 4,029.90 "
"Law, Democracy & Public Protection","Environmental Health, Trading Standards & Licensing",DEAA,Support Services,Legal And Admin Services,KEY FORENSIC SERVICES LTD,13/06/2012, 500.00 
"Law, Democracy & Public Protection","Environmental Health, Trading Standards & Licensing",DEAF,Supplies & Services,Subscriptions,AEA,26/06/2012," 1,870.00 "
"Law, Democracy & Public Protection","Health, Safety & Resilience",BHAB,Supplies & Services,Comp Software (Purch / Hire),MissionMode Solutions Limited,11/06/2012," 1,562.50 "
"Law, Democracy & Public Protection",Legal Services,BLAB,Premises-Related Expenditure,Hire Of Rooms,LOCAL GOVERNMENT ASSOCIATION,11/06/2012," 1,020.36 "
Planning,Development Management,DDAA,Supplies & Services,Comp Hardware (Purch / Hire),RESOLUTION DATA MANAGEMENT LTD,20/06/2012," 4,149.18 "
Planning,Development Management,DDAA,Supplies & Services,Comp Hardware (Purch / Hire),RESOLUTION DATA MANAGEMENT LTD,19/06/2012," 4,138.08 "
Planning,Development Management,DDAC,Supplies & Services,Legal Expenses,REDACTED PERSONAL INFORMATION,19/06/2012," 13,500.00 "
Planning,Development Management,DDAC,Supplies & Services,Legal Expenses,ECOLOGY SOLUTIONS LTD,18/06/2012," 2,788.08 "
Planning,Development Management,DDAC,Supplies & Services,Legal Expenses,WHITE YOUNG GREEN CONSULTING LTD,19/06/2012," 12,000.00 "
Planning,Housing,WDAC,Capital Expenditure,Other Capital Expenditure,TELFORD BUILDING CONTRACTORS,12/06/2012," 3,856.55 "
Planning,Housing,WDAF,Capital Expenditure,Other Capital Expenditure,ROSEMONT BUILDING CONTRACTORS,21/06/2012," 3,733.52 "
Planning,Housing,WDAF,Capital Expenditure,Other Capital Expenditure,PILOT HEAT,21/06/2012, 830.94 
Planning,Housing,WDAF,Capital Expenditure,Other Capital Expenditure,THE WREKIN HOUSING TRUST,11/06/2012," 1,124.19 "
Planning,Housing,WDAF,Capital Expenditure,Other Capital Expenditure,THE WREKIN HOUSING TRUST,11/06/2012," 1,581.08 "
Planning,Housing,WDAF,Capital Expenditure,Other Capital Expenditure,STANNAH LIFT SERVICES LTD,11/06/2012," 2,149.00 "
Planning,Housing,WDAF,Capital Expenditure,Other Capital Expenditure,ROSEMONT BUILDING CONTRACTORS,11/06/2012," 6,660.00 "
Planning,Housing,WDAF,Capital Expenditure,Other Capital Expenditure,R E BROWN BUILDING CONTRACTS,11/06/2012," 1,420.51 "
Planning,Housing,WDAF,Capital Expenditure,Other Capital Expenditure,R E BROWN BUILDING CONTRACTS,11/06/2012," 4,218.52 "
Planning,Housing,WDAF,Capital Expenditure,Other Capital Expenditure,TOTAL HYGIENE LIMITED,11/06/2012," 2,710.00 "
Planning,Housing,WDAF,Capital Expenditure,Other Capital Expenditure,STANNAH LIFT SERVICES LTD,20/06/2012," 1,521.00 "
Planning,Housing,WDAF,Capital Expenditure,Other Capital Expenditure,AIDS & ADAPTIONS LTD,13/06/2012," 1,891.12 "
Planning,Housing,WDAF,Capital Expenditure,Other Capital Expenditure,STANNAH LIFT SERVICES LTD,13/06/2012," 1,407.00 "
Planning,Housing,WDAF,Capital Expenditure,Other Capital Expenditure,R E BROWN BUILDING CONTRACTS,13/06/2012," 4,540.39 "
Planning,Housing,WDSB,Capital Expenditure,Plan Environment Services Fees,AE PROPERTY MAINTENACE,20/06/2012, 531.00 
Planning,Housing,WDSD,Capital Expenditure,Payments to Contractor,MCPHILLIPS (WELLINGTON) LTD,14/06/2012," 1,950.00 "
Planning,Housing,DHAF,Premises-Related Expenditure,Bed & Breakfast Charges,Charnwood Guesthouse,21/06/2012, 810.00 
Planning,Housing,DHAF,Premises-Related Expenditure,Bed & Breakfast Charges,THE GALLERY GUEST HOUSE,21/06/2012, 840.00 
Planning,Housing,DHAF,Premises-Related Expenditure,Bed & Breakfast Charges,OLD VICARAGE,25/06/2012," 2,370.00 "
Planning,Housing,DHAF,Premises-Related Expenditure,Bed & Breakfast Charges,THE FIRS GUEST HOUSE,25/06/2012," 2,780.00 "
Planning,Housing,DHAF,Premises-Related Expenditure,Bed & Breakfast Charges,Charnwood Guesthouse,19/06/2012, 630.00 
Planning,Housing,DHAF,Premises-Related Expenditure,Bed & Breakfast Charges,OLD VICARAGE,08/06/2012," 2,540.00 "
Planning,Housing,DHAF,Premises-Related Expenditure,Bed & Breakfast Charges,THE GALLERY GUEST HOUSE,08/06/2012, 800.00 
Planning,Housing,DHAF,Premises-Related Expenditure,Bed & Breakfast Charges,OLD VICARAGE,08/06/2012," 2,285.00 "
Planning,Housing,DHAF,Premises-Related Expenditure,Bed & Breakfast Charges,THE FIRS GUEST HOUSE,08/06/2012," 3,085.00 "
Planning,Housing,DHAF,Premises-Related Expenditure,Bed & Breakfast Charges,THE GALLERY GUEST HOUSE,08/06/2012, 840.00 
Planning,Housing,DHAF,Premises-Related Expenditure,Bed & Breakfast Charges,THE FIRS GUEST HOUSE,21/06/2012," 2,525.00 "
Planning,Housing,DHAF,Premises-Related Expenditure,Bed & Breakfast Charges,THE GALLERY GUEST HOUSE,21/06/2012, 840.00 
Planning,Housing,DHAF,Premises-Related Expenditure,Bed & Breakfast Charges,THE FIRS GUEST HOUSE,21/06/2012," 2,225.00 "
Planning,Housing,DHAF,Premises-Related Expenditure,Bed & Breakfast Charges,OLD VICARAGE,21/06/2012," 2,343.00 "
Planning,Housing,DHAF,Premises-Related Expenditure,Bed & Breakfast Charges,THE GALLERY GUEST HOUSE,21/06/2012, 840.00 
Planning,Housing,DHAG,Premises-Related Expenditure,Other Energy Costs,AR TREBLE & A TREBLE,19/06/2012," 1,650.00 "
Planning,Housing,DHAG,Premises-Related Expenditure,General Rents,THE WREKIN HOUSING TRUST,25/06/2012," 1,120.38 "
Planning,Housing,DHAG,Premises-Related Expenditure,General Rents,THE WREKIN HOUSING TRUST,25/06/2012," 1,120.38 "
Planning,Housing,DHAG,Premises-Related Expenditure,General Rents,THE WREKIN HOUSING TRUST,25/06/2012," 1,120.38 "
Planning,Housing,DHAG,Premises-Related Expenditure,General Rents,THE WREKIN HOUSING TRUST,25/06/2012," 1,120.38 "
Planning,Housing,DHAG,Premises-Related Expenditure,General Rents,THE WREKIN HOUSING TRUST,25/06/2012," 1,525.38 "
Planning,Housing,DHAG,Premises-Related Expenditure,Leasehold Rents,AR TREBLE & A TREBLE,19/06/2012," 1,152.20 "
Planning,Housing,DHAG,Premises-Related Expenditure,Leasehold Rents,THE WREKIN HOUSING TRUST,25/06/2012," 1,445.22 "
Planning,Housing,DHAG,Premises-Related Expenditure,Leasehold Rents,THE WREKIN HOUSING TRUST,25/06/2012," 1,365.84 "
Planning,Housing,DHAG,Premises-Related Expenditure,Leasehold Rents,THE WREKIN HOUSING TRUST,25/06/2012," 1,605.84 "
Planning,Housing,DHAG,Premises-Related Expenditure,Leasehold Rents,REDACTED PERSONAL INFORMATION,13/06/2012, 506.70 
Planning,Housing,DHAH,Supplies & Services,Health & Safety Expenses,ABC FIRE & SECURITY LTD,08/06/2012," 1,614.00 "
Planning,Housing,DHAJ,Supplies & Services,Security Services,RMP SPECIALIST SERVICES LIMITED,21/06/2012," 2,743.13 "
Planning,Housing,DHAK,Supplies & Services,Equipment - Purchase,TRIO FURNISHINGS LTD,19/06/2012, 938.00 
Planning,Housing,DHAK,Supplies & Services,Other Office Expenses,NICK TART LETTINGS,08/06/2012, 616.07 
Planning,Housing,DHAP,Premises-Related Expenditure,Electricity,West Mercia Energy (WME),08/06/2012," 1,877.99 "
Planning,Housing,DHAP,Premises-Related Expenditure,Electricity,West Mercia Energy (WME),08/06/2012," 1,739.31 "
Planning,Housing,DHAP,Premises-Related Expenditure,Sewage Charges,SEVERN TRENT WATER LTD,25/06/2012, 754.74 
Planning,Housing,DHAP,Premises-Related Expenditure,Sewage Charges,SEVERN TRENT WATER LTD,12/06/2012," 1,509.37 "
Planning,Housing,DHAP,Premises-Related Expenditure,Sewage Charges,SEVERN TRENT WATER LTD,07/06/2012, 744.36 
Planning,Housing,DHAP,Supplies & Services,Legal Expenses,TELF & WREKIN LEGAL SECTION URGENT A/C,12/06/2012, 700.00 
Planning,Housing,DHAQ,Supplies & Services,Other Services,TELFORD & WREKIN CITIZENS ADVICE BUREAU,26/06/2012," 5,500.00 "
Planning,Housing,DSAA,Employees,Employee Costs Recharged,PARK LANE CENTRE,26/06/2012," 1,155.00 "
Planning,Housing,DSAA,Employees,Employee Costs Recharged,PARK LANE CENTRE,26/06/2012," 1,400.00 "
Planning,Strategic Housing,WDSE,Capital Expenditure,Payments to Contractor,COUCH CONSULTING ENGINEERS,26/06/2012," 1,900.00 "
Planning,Strategic Housing,WDSE,Capital Expenditure,Payments to Contractor,CLARKES SOLICITORS,29/06/2012," 100,000.00 "
,,,,,,," 9,819,422.00 "
